Workbook

Sheet Multiple Scenarios
E1: All concentrations reported are µg/L total Aluminum
E3: <-----Click Button after entering data
B7: ENTER DATA HERE | K7: ACUTE | X7: CHRONIC
K8: Rank 1 | N8: Rank 2 | Q8: Rank 3 | T8: Rank 4 | X8: Rank 1 | AA8: Rank 2 | AD8: Rank 3 | AG8: Rank 4
B9: SiteName | C9: DOC (mg/L) | D9: Hardness (mg/L as CaCO3) | E9: pH | G9: FAV | H9: CMC | I9: CCC | K9: Genus | L9: GMAV | N9: Genus | O9: GMAV | Q9: Genus | R9: GMAV | T9: Genus | U9: GMAV | X9: Genus | Y9: GMCV | AA9: Genus | AB9: GMCV | AD9: Genus | AE9: GMCV | AG9: Genus | AH9: GMCV
B10: Site 1 | C10: 5 | D10: 25 | E10: 9 | F10: 7542.873703 | G10: 3522.932467 | H10: 1800 | I10: 770 | K10: Daphnia | M10: 3345.214722 | N10: Ceriodaphnia | P10: 7357.572782 | Q10: Stenocypris | S10: 10257.61007 | T10: Crangonyx | V10: 12222.95237 | X10: Lampsilis | Z10: 1046.282803 | AA10: Ceriodaphnia | AC10: 1186.529653 | AD10: Hyalella | AF10: 1720.041986 | AG10: Brachionus | AI10: 2564.829402
B11: Site 2 | C11: 5 | D11: 50 | E11: 9 | F11: 7542.873703 | G11: 3120.499151 | H11: 1600 | I11: 680 | K11: Daphnia | M11: 2963.082545 | N11: Ceriodaphnia | P11: 6517.09899 | Q11: Stenocypris | S11: 9085.857827 | T11: Crangonyx | V11: 10826.6942 | X11: Lampsilis | Z11: 926.7633227 | AA11: Ceriodaphnia | AC11: 1050.989427 | AD11: Hyalella | AF11: 1523.557323 | AG11: Brachionus | AI11: 2271.842576
B12: Site 3 | C12: 5 | D12: 75 | E12: 9 | F12: 7542.873703 | G12: 2906.752793 | H12: 1500 | I12: 640 | K12: Daphnia | M12: 2760.118829 | N12: Ceriodaphnia | P12: 6070.69407 | Q12: Stenocypris | S12: 8463.499375 | T12: Crangonyx | V12: 10085.09283 | X12: Lampsilis | Z12: 863.2823616 | AA12: Ceriodaphnia | AC12: 978.9992897 | AD12: Hyalella | AF12: 1419.197471 | AG12: Brachionus | AI12: 2116.227063
B13: Site 4 | C13: 5 | D13: 100 | E13: 9 | F13: 7542.873703 | G13: 2764.036791 | H13: 1400 | I13: 600 | K13: Daphnia | M13: 2624.602275 | N13: Ceriodaphnia | P13: 5772.634604 | Q13: Stenocypris | S13: 8047.957746 | T13: Crangonyx | V13: 9589.934062 | X13: Lampsilis | Z13: 820.8968491 | AA13: Ceriodaphnia | AC13: 930.9322973 | AD13: Hyalella | AF13: 1349.51759 | AG13: Brachionus | AI13: 2012.324363
B14: Site 5 | C14: 5 | D14: 150 | E14: 9 | F14: 7542.873703 | G14: 2574.70721 | H14: 1300 | I14: 560 | K14: Daphnia | M14: 2444.823608 | N14: Ceriodaphnia | P14: 5377.223625 | Q14: Stenocypris | S14: 7496.692844 | T14: Crangonyx | V14: 8933.047654 | X14: Lampsilis | Z14: 764.6674757 | AA14: Ceriodaphnia | AC14: 867.165772 | AD14: Hyalella | AF14: 1257.079023 | AG14: Brachionus | AI14: 1874.485196
B15: Site 6 | C15: 5 | D15: 150 | E15: 9 | F15: 7542.873703 | G15: 2574.70721 | H15: 1300 | I15: 560 | K15: Daphnia | M15: 2444.823608 | N15: Ceriodaphnia | P15: 5377.223625 | Q15: Stenocypris | S15: 7496.692844 | T15: Crangonyx | V15: 8933.047654 | X15: Lampsilis | Z15: 764.6674757 | AA15: Ceriodaphnia | AC15: 867.165772 | AD15: Hyalella | AF15: 1257.079023 | AG15: Brachionus | AI15: 1874.485196
B16: Site 7 | C16: 5 | D16: 150 | E16: 9 | F16: 7542.873703 | G16: 2574.70721 | H16: 1300 | I16: 560 | K16: Daphnia | M16: 2444.823608 | N16: Ceriodaphnia | P16: 5377.223625 | Q16: Stenocypris | S16: 7496.692844 | T16: Crangonyx | V16: 8933.047654 | X16: Lampsilis | Z16: 764.6674757 | AA16: Ceriodaphnia | AC16: 867.165772 | AD16: Hyalella | AF16: 1257.079023 | AG16: Brachionus | AI16: 1874.485196
B17: Site 8 | C17: 5 | D17: 150 | E17: 9 | F17: 7542.873703 | G17: 2574.70721 | H17: 1300 | I17: 560 | K17: Daphnia | M17: 2444.823608 | N17: Ceriodaphnia | P17: 5377.223625 | Q17: Stenocypris | S17: 7496.692844 | T17: Crangonyx | V17: 8933.047654 | X17: Lampsilis | Z17: 764.6674757 | AA17: Ceriodaphnia | AC17: 867.165772 | AD17: Hyalella | AF17: 1257.079023 | AG17: Brachionus | AI17: 1874.485196
B18: Site 9 | C18: 5 | D18: 150 | E18: 9 | F18: 7542.873703 | G18: 2574.70721 | H18: 1300 | I18: 560 | K18: Daphnia | M18: 2444.823608 | N18: Ceriodaphnia | P18: 5377.223625 | Q18: Stenocypris | S18: 7496.692844 | T18: Crangonyx | V18: 8933.047654 | X18: Lampsilis | Z18: 764.6674757 | AA18: Ceriodaphnia | AC18: 867.165772 | AD18: Hyalella | AF18: 1257.079023 | AG18: Brachionus | AI18: 1874.485196
B19: Site 10 | C19: 5 | D19: 150 | E19: 9 | F19: 7542.873703 | G19: 2574.70721 | H19: 1300 | I19: 560 | K19: Daphnia | M19: 2444.823608 | N19: Ceriodaphnia | P19: 5377.223625 | Q19: Stenocypris | S19: 7496.692844 | T19: Crangonyx | V19: 8933.047654 | X19: Lampsilis | Z19: 764.6674757 | AA19: Ceriodaphnia | AC19: 867.165772 | AD19: Hyalella | AF19: 1257.079023 | AG19: Brachionus | AI19: 1874.485196
B20: Site 11 | C20: 5 | D20: 25 | E20: 8.5 | F20: 7542.873703 | G20: 6324.527566 | H20: 3200 | I20: 1400 | K20: Daphnia | M20: 6005.48064 | N20: Ceriodaphnia | P20: 13208.64715 | Q20: Stenocypris | S20: 18414.92515 | T20: Crangonyx | V20: 21943.19646 | X20: Lampsilis | Z20: 1878.33417 | AA20: Ceriodaphnia | AC20: 2130.111653 | AD20: Hyalella | AF20: 3087.897103 | AG20: Brachionus | AI20: 4604.497648
B21: Site 12 | C21: 5 | D21: 50 | E21: 8.5 | F21: 7542.873703 | G21: 6138.804461 | H21: 3100 | I21: 1300 | K21: Daphnia | M21: 5829.126517 | N21: Ceriodaphnia | P21: 12820.76822 | Q21: Stenocypris | S21: 17874.16111 | T21: Crangonyx | V21: 21298.82286 | X21: Lampsilis | Z21: 1823.175891 | AA21: Ceriodaphnia | AC21: 2067.559794 | AD21: Hyalella | AF21: 2997.219367 | AG21: Brachionus | AI21: 4469.284133
B22: Site 13 | C22: 5 | D22: 75 | E22: 8.5 | F22: 7542.873703 | G22: 6032.702043 | H22: 3000 | I22: 1300 | K22: Daphnia | M22: 5728.376538 | N22: Ceriodaphnia | P22: 12599.17548 | Q22: Stenocypris | S22: 17565.22608 | T22: Crangonyx | V22: 20930.69636 | X22: Lampsilis | Z22: 1791.66432 | AA22: Ceriodaphnia | AC22: 2031.824319 | AD22: Hyalella | AF22: 2945.415759 | AG22: Brachionus | AI22: 4392.03752
B23: Site 14 | C23: 5 | D23: 100 | E23: 8.5 | F23: 7542.873703 | G23: 5958.535213 | H23: 3000 | I23: 1300 | K23: Daphnia | M23: 5657.951126 | N23: Ceriodaphnia | P23: 12444.27957 | Q23: Stenocypris | S23: 17349.27689 | T23: Crangonyx | V23: 20673.37164 | X23: Lampsilis | Z23: 1769.637364 | AA23: Ceriodaphnia | AC23: 2006.844805 | AD23: Hyalella | AF23: 2909.204431 | AG23: Salmo | AI23: 4126.423915
B24: Site 15 | C24: 5 | D24: 150 | E24: 8.5 | F24: 7542.873703 | G24: 5855.548549 | H24: 2900 | I24: 1500 | K24: Daphnia | M24: 5560.159724 | N24: Ceriodaphnia | P24: 12229.19401 | Q24: Stenocypris | S24: 17049.4139 | T24: Crangonyx | V24: 20316.05536 | X24: Lampsilis | Z24: 1739.051147 | AA24: Ceriodaphnia | AC24: 1972.158721 | AD24: Hyalella | AF24: 2858.922063 | AG24: Salmo | AI24: 3037.028378
B25: Site 16 | C25: 5 | D25: 150 | E25: 8.5 | F25: 7542.873703 | G25: 5855.548549 | H25: 2900 | I25: 1500 | K25: Daphnia | M25: 5560.159724 | N25: Ceriodaphnia | P25: 12229.19401 | Q25: Stenocypris | S25: 17049.4139 | T25: Crangonyx | V25: 20316.05536 | X25: Lampsilis | Z25: 1739.051147 | AA25: Ceriodaphnia | AC25: 1972.158721 | AD25: Hyalella | AF25: 2858.922063 | AG25: Salmo | AI25: 3037.028378
B26: Site 17 | C26: 5 | D26: 150 | E26: 8.5 | F26: 7542.873703 | G26: 5855.548549 | H26: 2900 | I26: 1500 | K26: Daphnia | M26: 5560.159724 | N26: Ceriodaphnia | P26: 12229.19401 | Q26: Stenocypris | S26: 17049.4139 | T26: Crangonyx | V26: 20316.05536 | X26: Lampsilis | Z26: 1739.051147 | AA26: Ceriodaphnia | AC26: 1972.158721 | AD26: Hyalella | AF26: 2858.922063 | AG26: Salmo | AI26: 3037.028378
B27: Site 18 | C27: 5 | D27: 150 | E27: 8.5 | F27: 7542.873703 | G27: 5855.548549 | H27: 2900 | I27: 1500 | K27: Daphnia | M27: 5560.159724 | N27: Ceriodaphnia | P27: 12229.19401 | Q27: Stenocypris | S27: 17049.4139 | T27: Crangonyx | V27: 20316.05536 | X27: Lampsilis | Z27: 1739.051147 | AA27: Ceriodaphnia | AC27: 1972.158721 | AD27: Hyalella | AF27: 2858.922063 | AG27: Salmo | AI27: 3037.028378
B28: Site 19 | C28: 5 | D28: 150 | E28: 8.5 | F28: 7542.873703 | G28: 5855.548549 | H28: 2900 | I28: 1500 | K28: Daphnia | M28: 5560.159724 | N28: Ceriodaphnia | P28: 12229.19401 | Q28: Stenocypris | S28: 17049.4139 | T28: Crangonyx | V28: 20316.05536 | X28: Lampsilis | Z28: 1739.051147 | AA28: Ceriodaphnia | AC28: 1972.158721 | AD28: Hyalella | AF28: 2858.922063 | AG28: Salmo | AI28: 3037.028378
B29: Site 20 | C29: 5 | D29: 150 | E29: 8.5 | F29: 7542.873703 | G29: 5855.548549 | H29: 2900 | I29: 1500 | K29: Daphnia | M29: 5560.159724 | N29: Ceriodaphnia | P29: 12229.19401 | Q29: Stenocypris | S29: 17049.4139 | T29: Crangonyx | V29: 20316.05536 | X29: Lampsilis | Z29: 1739.051147 | AA29: Ceriodaphnia | AC29: 1972.158721 | AD29: Hyalella | AF29: 2858.922063 | AG29: Salmo | AI29: 3037.028378

Sheet Summary Sheet
B3: Normalization Chemistry
B4: pH: | C4: 8.5 | D4: =IF(AND(6<=C4,C4<=8.1),"","Outside model inputs") -> Outside model inputs | G4: FAV | H4: =E41 -> 5855.548549
B5: Hardness: | C5: 150 | D5: =IF(AND(9.8<=C5,C5<=127),"","Outside model inputs") -> Outside model inputs | G5: CMC | H5: =ROUND(E42,2-(1+INT(LOG10(ABS(E42))))) -> 2900
B6: DOC: | C6: 5 | D6: =IF(AND(0.08<=C6,C6<=5),"","Outside model inputs") ->  | G6: CCC | H6: =ROUND(O41,2-(1+INT(LOG10(ABS(O41))))) -> 1500
B9: Acute Ranked GMAV | L9: Chronic Ranked GMCV
B10: Rank | D10: GMAV | E10: Genus | L10: Rank | N10: GMCV | O10: Genus
B11: 18 | C11: =IF(VLOOKUP(D11,'Acute Dataset'!N$5:P$116,2,)=">",">","") -> > | D11: =SMALL('Acute Dataset'!N$5:N$116,'Summary Sheet'!B11) -> 235380.6692 | E11: =VLOOKUP(D11,'Acute Dataset'!N$5:P$116,3,FALSE) -> Hybognathus | F11: =VLOOKUP(D11,'Acute Dataset'!N$5:Q$116,4,FALSE) -> Fish | L11: 12 | M11: =IF(VLOOKUP(N11,'Chronic Dataset'!M$5:O$43,2,FALSE) =">",">","") -> > | N11: =SMALL('Chronic Dataset'!$M$5:$M$43,L11) -> 58200.53084 | O11: =VLOOKUP(N11,'Chronic Dataset'!M$5:O$43,3,FALSE) -> Rana | P11: =VLOOKUP(N11,'Chronic Dataset'!M$5:P$43,4,FALSE) -> Amphib - Other Data
B12: 17 | C12: =IF(VLOOKUP(D12,'Acute Dataset'!N$5:P$116,2,)=">",">","") -> > | D12: =SMALL('Acute Dataset'!N$5:N$116,'Summary Sheet'!B12) -> 143495.8286 | E12: =VLOOKUP(D12,'Acute Dataset'!N$5:P$116,3,FALSE) -> Lepomis | F12: =VLOOKUP(D12,'Acute Dataset'!N$5:Q$116,4,FALSE) -> Fish | L12: 11 | M12: =IF(VLOOKUP(N12,'Chronic Dataset'!M$5:O$43,2,FALSE) =">",">","") ->  | N12: =SMALL('Chronic Dataset'!$M$5:$M$43,L12) -> 28533.87769 | O12: =VLOOKUP(N12,'Chronic Dataset'!M$5:O$43,3,FALSE) -> Aeolosoma | P12: =VLOOKUP(N12,'Chronic Dataset'!M$5:P$43,4,FALSE) -> Invert
B13: 16 | C13: =IF(VLOOKUP(D13,'Acute Dataset'!N$5:P$116,2,)=">",">","") ->  | D13: =SMALL('Acute Dataset'!N$5:N$116,'Summary Sheet'!B13) -> 137937.9039 | E13: =VLOOKUP(D13,'Acute Dataset'!N$5:P$116,3,FALSE) -> Salvelinus | F13: =VLOOKUP(D13,'Acute Dataset'!N$5:Q$116,4,FALSE) -> Fish | L13: 10 | M13: =IF(VLOOKUP(N13,'Chronic Dataset'!M$5:O$43,2,FALSE) =">",">","") ->  | N13: =SMALL('Chronic Dataset'!$M$5:$M$43,L13) -> 14857.05115 | O13: =VLOOKUP(N13,'Chronic Dataset'!M$5:O$43,3,FALSE) -> Pimephales | P13: =VLOOKUP(N13,'Chronic Dataset'!M$5:P$43,4,FALSE) -> Fish
B14: 15 | C14: =IF(VLOOKUP(D14,'Acute Dataset'!N$5:P$116,2,)=">",">","") -> > | D14: =SMALL('Acute Dataset'!N$5:N$116,'Summary Sheet'!B14) -> 119537.2948 | E14: =VLOOKUP(D14,'Acute Dataset'!N$5:P$116,3,FALSE) -> Hyla | F14: =VLOOKUP(D14,'Acute Dataset'!N$5:Q$116,4,FALSE) -> Amphibian | L14: 9 | M14: =IF(VLOOKUP(N14,'Chronic Dataset'!M$5:O$43,2,FALSE) =">",">","") ->  | N14: =SMALL('Chronic Dataset'!$M$5:$M$43,L14) -> 9859.991961 | O14: =VLOOKUP(N14,'Chronic Dataset'!M$5:O$43,3,FALSE) -> Chironomus | P14: =VLOOKUP(N14,'Chronic Dataset'!M$5:P$43,4,FALSE) -> Invert
B15: 14 | C15: =IF(VLOOKUP(D15,'Acute Dataset'!N$5:P$116,2,)=">",">","") -> > | D15: =SMALL('Acute Dataset'!N$5:N$116,'Summary Sheet'!B15) -> 103997.5547 | E15: =VLOOKUP(D15,'Acute Dataset'!N$5:P$116,3,FALSE) -> Paratanytarsus | F15: =VLOOKUP(D15,'Acute Dataset'!N$5:Q$116,4,FALSE) -> Invert | L15: 8 | M15: =IF(VLOOKUP(N15,'Chronic Dataset'!M$5:O$43,2,FALSE) =">",">","") ->  | N15: =SMALL('Chronic Dataset'!$M$5:$M$43,L15) -> 8138.535873 | O15: =VLOOKUP(N15,'Chronic Dataset'!M$5:O$43,3,FALSE) -> Lymnaea | P15: =VLOOKUP(N15,'Chronic Dataset'!M$5:P$43,4,FALSE) -> Mollusk
B16: 13 | C16: =IF(VLOOKUP(D16,'Acute Dataset'!N$5:P$116,2,)=">",">","") ->  | D16: =SMALL('Acute Dataset'!N$5:N$116,'Summary Sheet'!B16) -> 60722.74752 | E16: =VLOOKUP(D16,'Acute Dataset'!N$5:P$116,3,FALSE) -> Pimephales | F16: =VLOOKUP(D16,'Acute Dataset'!N$5:Q$116,4,FALSE) -> Fish | L16: 7 | M16: =IF(VLOOKUP(N16,'Chronic Dataset'!M$5:O$43,2,FALSE) =">",">","") ->  | N16: =SMALL('Chronic Dataset'!$M$5:$M$43,L16) -> 6580.777536 | O16: =VLOOKUP(N16,'Chronic Dataset'!M$5:O$43,3,FALSE) -> Danio | P16: =VLOOKUP(N16,'Chronic Dataset'!M$5:P$43,4,FALSE) -> Fish
B17: 12 | C17: =IF(VLOOKUP(D17,'Acute Dataset'!N$5:P$116,2,)=">",">","") ->  | D17: =SMALL('Acute Dataset'!N$5:N$116,'Summary Sheet'!B17) -> 59179.82814 | E17: =VLOOKUP(D17,'Acute Dataset'!N$5:P$116,3,FALSE) -> Physa | F17: =VLOOKUP(D17,'Acute Dataset'!N$5:Q$116,4,FALSE) -> Mollusk | L17: 6 | M17: =IF(VLOOKUP(N17,'Chronic Dataset'!M$5:O$43,2,FALSE) =">",">","") ->  | N17: =SMALL('Chronic Dataset'!$M$5:$M$43,L17) -> 4263.063009 | O17: =VLOOKUP(N17,'Chronic Dataset'!M$5:O$43,3,FALSE) -> Brachionus | P17: =VLOOKUP(N17,'Chronic Dataset'!M$5:P$43,4,FALSE) -> Invert
B18: 11 | C18: =IF(VLOOKUP(D18,'Acute Dataset'!N$5:P$116,2,)=">",">","") -> > | D18: =SMALL('Acute Dataset'!N$5:N$116,'Summary Sheet'!B18) -> 49787.87478 | E18: =VLOOKUP(D18,'Acute Dataset'!N$5:P$116,3,FALSE) -> Lampsilis | F18: =VLOOKUP(D18,'Acute Dataset'!N$5:Q$116,4,FALSE) -> Mollusk | L18: 5 | M18: =IF(VLOOKUP(N18,'Chronic Dataset'!M$5:O$43,2,FALSE) =">",">","") ->  | N18: =SMALL('Chronic Dataset'!$M$5:$M$43,L18) -> 3531.941148 | O18: =VLOOKUP(N18,'Chronic Dataset'!M$5:O$43,3,FALSE) -> Salvelinus | P18: =VLOOKUP(N18,'Chronic Dataset'!M$5:P$43,4,FALSE) -> Fish
B19: 10 | C19: =IF(VLOOKUP(D19,'Acute Dataset'!N$5:P$116,2,)=">",">","") -> > | D19: =SMALL('Acute Dataset'!N$5:N$116,'Summary Sheet'!B19) -> 46730.44272 | E19: =VLOOKUP(D19,'Acute Dataset'!N$5:P$116,3,FALSE) -> Hyalella | F19: =VLOOKUP(D19,'Acute Dataset'!N$5:Q$116,4,FALSE) -> Invert | L19: 4 | M19: =IF(VLOOKUP(N19,'Chronic Dataset'!M$5:O$43,2,FALSE) =">",">","") ->  | N19: =SMALL('Chronic Dataset'!$M$5:$M$43,L19) -> 3037.028378 | O19: =VLOOKUP(N19,'Chronic Dataset'!M$5:O$43,3,FALSE) -> Salmo | P19: =VLOOKUP(N19,'Chronic Dataset'!M$5:P$43,4,FALSE) -> Fish
B20: 9 | C20: =IF(VLOOKUP(D20,'Acute Dataset'!N$5:P$116,2,)=">",">","") ->  | D20: =SMALL('Acute Dataset'!N$5:N$116,'Summary Sheet'!B20) -> 42703.4665 | E20: =VLOOKUP(D20,'Acute Dataset'!N$5:P$116,3,FALSE) -> Salmo | F20: =VLOOKUP(D20,'Acute Dataset'!N$5:Q$116,4,FALSE) -> Fish | L20: 3 | M20: =IF(VLOOKUP(N20,'Chronic Dataset'!M$5:O$43,2,FALSE) =">",">","") ->  | N20: =SMALL('Chronic Dataset'!$M$5:$M$43,L20) -> 2858.922063 | O20: =VLOOKUP(N20,'Chronic Dataset'!M$5:O$43,3,FALSE) -> Hyalella | P20: =VLOOKUP(N20,'Chronic Dataset'!M$5:P$43,4,FALSE) -> Invert
B21: 8 | C21: =IF(VLOOKUP(D21,'Acute Dataset'!N$5:P$116,2,)=">",">","") ->  | D21: =SMALL('Acute Dataset'!N$5:N$116,'Summary Sheet'!B21) -> 42323.29572 | E21: =VLOOKUP(D21,'Acute Dataset'!N$5:P$116,3,FALSE) -> Chironomus | F21: =VLOOKUP(D21,'Acute Dataset'!N$5:Q$116,4,FALSE) -> Invert | L21: 2 | M21: =IF(VLOOKUP(N21,'Chronic Dataset'!M$5:O$43,2,FALSE) =">",">","") ->  | N21: =SMALL('Chronic Dataset'!$M$5:$M$43,L21) -> 1972.158721 | O21: =VLOOKUP(N21,'Chronic Dataset'!M$5:O$43,3,FALSE) -> Ceriodaphnia | P21: =VLOOKUP(N21,'Chronic Dataset'!M$5:P$43,4,FALSE) -> Invert
B22: 7 | C22: =IF(VLOOKUP(D22,'Acute Dataset'!N$5:P$116,2,)=">",">","") -> > | D22: =SMALL('Acute Dataset'!N$5:N$116,'Summary Sheet'!B22) -> 34207.60148 | E22: =VLOOKUP(D22,'Acute Dataset'!N$5:P$116,3,FALSE) -> Acroneuria | F22: =VLOOKUP(D22,'Acute Dataset'!N$5:Q$116,4,FALSE) -> Invert | L22: 1 | M22: =IF(VLOOKUP(N22,'Chronic Dataset'!M$5:O$43,2,FALSE) =">",">","") ->  | N22: =SMALL('Chronic Dataset'!$M$5:$M$43,L22) -> 1739.051147 | O22: =VLOOKUP(N22,'Chronic Dataset'!M$5:O$43,3,FALSE) -> Lampsilis | P22: =VLOOKUP(N22,'Chronic Dataset'!M$5:P$43,4,FALSE) -> Mollusk
B23: 6 | C23: =IF(VLOOKUP(D23,'Acute Dataset'!N$5:P$116,2,)=">",">","") ->  | D23: =SMALL('Acute Dataset'!N$5:N$116,'Summary Sheet'!B23) -> 23464.21904 | E23: =VLOOKUP(D23,'Acute Dataset'!N$5:P$116,3,FALSE) -> Micropterus | F23: =VLOOKUP(D23,'Acute Dataset'!N$5:Q$116,4,FALSE) -> Fish
B24: 5 | C24: =IF(VLOOKUP(D24,'Acute Dataset'!N$5:P$116,2,)=">",">","") ->  | D24: =SMALL('Acute Dataset'!N$5:N$116,'Summary Sheet'!B24) -> 21861.31215 | E24: =VLOOKUP(D24,'Acute Dataset'!N$5:P$116,3,FALSE) -> Oncorhynchus | F24: =VLOOKUP(D24,'Acute Dataset'!N$5:Q$116,4,FALSE) -> Fish
B25: 4 | C25: =IF(VLOOKUP(D25,'Acute Dataset'!N$5:P$116,2,)=">",">","") ->  | D25: =SMALL('Acute Dataset'!N$5:N$116,'Summary Sheet'!B25) -> 20316.05536 | E25: =VLOOKUP(D25,'Acute Dataset'!N$5:P$116,3,FALSE) -> Crangonyx | F25: =VLOOKUP(D25,'Acute Dataset'!N$5:Q$116,4,FALSE) -> Invert
B26: 3 | C26: =IF(VLOOKUP(D26,'Acute Dataset'!N$5:P$116,2,)=">",">","") ->  | D26: =SMALL('Acute Dataset'!N$5:N$116,'Summary Sheet'!B26) -> 17049.4139 | E26: =VLOOKUP(D26,'Acute Dataset'!N$5:P$116,3,FALSE) -> Stenocypris | F26: =VLOOKUP(D26,'Acute Dataset'!N$5:Q$116,4,FALSE) -> Invert
B27: 2 | C27: =IF(VLOOKUP(D27,'Acute Dataset'!N$5:P$116,2,)=">",">","") ->  | D27: =SMALL('Acute Dataset'!N$5:N$116,'Summary Sheet'!B27) -> 12229.19401 | E27: =VLOOKUP(D27,'Acute Dataset'!N$5:P$116,3,FALSE) -> Ceriodaphnia | F27: =VLOOKUP(D27,'Acute Dataset'!N$5:Q$116,4,FALSE) -> Invert
B28: 1 | C28: =IF(VLOOKUP(D28,'Acute Dataset'!N$5:P$116,2,)=">",">","") ->  | D28: =SMALL('Acute Dataset'!N$5:N$116,'Summary Sheet'!B28) -> 5560.159724 | E28: =VLOOKUP(D28,'Acute Dataset'!N$5:P$116,3,FALSE) -> Daphnia | F28: =VLOOKUP(D28,'Acute Dataset'!N$5:Q$116,4,FALSE) -> Invert
C31: N | D31: Rank | E31: Genus | F31: GMAV | G31: ln(GMAV) | H31: ln(GMAV)2 | I31: P=R/(N+1) | J31: sqrt(P) | M31: N | N31: Rank | O31: Genus | P31: GMCV | Q31: ln(GMCV) | R31: ln(GMCV)2 | S31: P=R/(N+1) | T31: sqrt(P)
C32: 18 | D32: 4 | E32: =E25 -> Crangonyx | F32: =D25 -> 20316.05536 | G32: =LN(F32) -> 9.919166757 | H32: =G32^2 -> 98.38986916 | I32: =D32 / (C32+1) -> 0.2105263158 | J32: =SQRT(I32) -> 0.4588314677 | M32: 12 | N32: 4 | O32: =O19 -> Salmo | P32: =N19 -> 3037.028378 | Q32: =LN(P32) -> 8.018634809 | R32: =Q32^2 -> 64.2985042 | S32: =N32 / (M32+1) -> 0.3076923077 | T32: =SQRT(S32) -> 0.5547001962
D33: 3 | E33: =E26 -> Stenocypris | F33: =D26 -> 17049.4139 | G33: =LN(F33) -> 9.743871107 | H33: =G33^2 -> 94.94302415 | I33: =D33 / (C32+1) -> 0.1578947368 | J33: =SQRT(I33) -> 0.3973597071 | N33: 3 | O33: =O20 -> Hyalella | P33: =N20 -> 2858.922063 | Q33: =LN(P33) -> 7.958199932 | R33: =Q33^2 -> 63.33294616 | S33: =N33 / (M32+1) -> 0.2307692308 | T33: =SQRT(S33) -> 0.4803844614
D34: 2 | E34: =E27 -> Ceriodaphnia | F34: =D27 -> 12229.19401 | G34: =LN(F34) -> 9.411581324 | H34: =G34^2 -> 88.57786302 | I34: =D34 / (C32+1) -> 0.1052631579 | J34: =SQRT(I34) -> 0.3244428423 | N34: 2 | O34: =O21 -> Ceriodaphnia | P34: =N21 -> 1972.158721 | Q34: =LN(P34) -> 7.586884019 | R34: =Q34^2 -> 57.56080912 | S34: =N34 / (M32+1) -> 0.1538461538 | T34: =SQRT(S34) -> 0.3922322703
D35: 1 | E35: =E28 -> Daphnia | F35: =D28 -> 5560.159724 | G35: =LN(F35) -> 8.623382114 | H35: =G35^2 -> 74.36271909 | I35: =D35 / (C32+1) -> 0.05263157895 | J35: =SQRT(I35) -> 0.2294157339 | N35: 1 | O35: =O22 -> Lampsilis | P35: =N22 -> 1739.051147 | Q35: =LN(P35) -> 7.461094926 | R35: =Q35^2 -> 55.66793749 | S35: =N35 / (M32+1) -> 0.07692307692 | T35: =SQRT(S35) -> 0.2773500981
D36: Sum: | G36: =SUM(G32:G35) -> 37.6980013 | H36: =SUM(H32:H35) -> 356.2734754 | I36: =SUM(I32:I35) -> 0.5263157895 | J36: =SUM(J32:J35) -> 1.410049751 | N36: Sum: | Q36: =SUM(Q32:Q35) -> 31.02481369 | R36: =SUM(R32:R35) -> 240.860197 | S36: =SUM(S32:S35) -> 0.7692307692 | T36: =SUM(T32:T35) -> 1.704667026
D38: S2 = | E38: =(H36 - ((G36^2)/4)) / (I36 - ((J36^2)/4)) -> 33.79339332 | N38: S2 = | O38: =(R36 - ((Q36^2)/4)) / (S36 - ((T36^2)/4)) -> 5.272207601
D39: L = | E39: =(G36 - (SQRT(E38) * J36)) / 4 -> 7.375272018 | N39: L = | O39: =(Q36 - (SQRT(O38) * T36)) / 4 -> 6.777669646
D40: A = | E40: =(SQRT(E38) * SQRT(0.05)) + E39 -> 8.675144961 | N40: A = | O40: =(SQRT(O38) * SQRT(0.05)) + O39 -> 7.29109966
D41: FAV = | E41: =EXP(E40) -> 5855.548549 | N41: FCV = | O41: =EXP(O40) -> 1467.183214
D42: CMC = | E42: =E41/2 -> 2927.774274

Sheet Acute Dataset
B1: Appendix A. Acceptable Acute Toxicity Data of Aluminum to Freshwater Aquatic Animals
B3: Species | C3: Methoda | D3: Hardness (mg/L as CaCO3) | E3: pH | F3: DOC (mg/L) | H3: LC50 or EC50 Conc. (µg/L) | I3: Reference | K3: Normalized Conc. - LC50 (µg/L) | M3: Species Mean Acute Value (µg/L) | N3: Genus Mean Acute Value (µg/L) | P3: Genus | R3: DOC Note | S3: Dilution water
B5: Snail, Physa sp. | C5: S, M, T | D5: 47.4 | E5: 6.59 | F5: 1.1 | G5: > | H5: 23400 | I5: Call 1984; Call et al. 1984 | J5: > | K5: =EXP(LN(H5)-0.525*(LN(F5)-LN('Summary Sheet'!$C$6))-11.282*(E5-'Summary Sheet'!$C$4)-2.201*(LN(D5)-LN('Summary Sheet'!$C$5))+0.663*(E5^2-'Summary Sheet'!$C$4^2)+0.264*((E5*LN(D5)-'Summary Sheet'!$C$4*LN('Summary Sheet'!$C$5)))) -> 80813.59025 | M5: - | P5: Physa | R5: Value is from 2007 FW Cu AWQC Appendix C recommendation | S5: Raw Lake Superior water
B6: Snail, Physa sp. | C6: S, M, T | D6: 47.4 | E6: 7.55 | F6: 1.1 | H6: 30600 | I6: Call 1984; Call et al. 1984 | K6: =EXP(LN(H6)-0.525*(LN(F6)-LN('Summary Sheet'!$C$6))-11.282*(E6-'Summary Sheet'!$C$4)-2.201*(LN(D6)-LN('Summary Sheet'!$C$5))+0.663*(E6^2-'Summary Sheet'!$C$4^2)+0.264*((E6*LN(D6)-'Summary Sheet'!$C$4*LN('Summary Sheet'!$C$5)))) -> 45035.25159 | M6: - | P6: Physa | R6: Value is from 2007 FW Cu AWQC Appendix C recommendation | S6: Raw Lake Superior water
B7: Snail, Physa sp. | C7: S, M, T | D7: 47.4 | E7: 8.17 | F7: 1.1 | G7: > | H7: 24700 | I7: Call 1984; Call et al. 1984 | J7: > | K7: =EXP(LN(H7)-0.525*(LN(F7)-LN('Summary Sheet'!$C$6))-11.282*(E7-'Summary Sheet'!$C$4)-2.201*(LN(D7)-LN('Summary Sheet'!$C$5))+0.663*(E7^2-'Summary Sheet'!$C$4^2)+0.264*((E7*LN(D7)-'Summary Sheet'!$C$4*LN('Summary Sheet'!$C$5)))) -> 40119.04956 | M7: - | P7: Physa | R7: Value is from 2007 FW Cu AWQC Appendix C recommendation | S7: Raw Lake Superior water
B8: Snail, Physa sp. | C8: S, M, T | D8: 47.4 | E8: 7.46 | F8: 1.1 | H8: 55500 | I8: Call 1984; Call et al. 1984 | K8: =EXP(LN(H8)-0.525*(LN(F8)-LN('Summary Sheet'!$C$6))-11.282*(E8-'Summary Sheet'!$C$4)-2.201*(LN(D8)-LN('Summary Sheet'!$C$5))+0.663*(E8^2-'Summary Sheet'!$C$4^2)+0.264*((E8*LN(D8)-'Summary Sheet'!$C$4*LN('Summary Sheet'!$C$5)))) -> 84005.39302 | M8: =GEOMEAN(K5:K8) -> 59179.82814 | N8: =M8 -> 59179.82814 | P8: Physa | Q8: Mollusk | R8: Value is from 2007 FW Cu AWQC Appendix C recommendation | S8: Raw Lake Superior water
B10: Fatmucket, Lampsilis siliquoidea | C10: F, M, T | D10: 106 | E10: 6.12 | F10: 0.48 | G10: > | H10: 6302 | I10: Wang et al. 2016; Wang et al. 2017 | J10: > | K10: =EXP(LN(H10)-0.525*(LN(F10)-LN('Summary Sheet'!$C$6))-11.282*(E10-'Summary Sheet'!$C$4)-2.201*(LN(D10)-LN('Summary Sheet'!$C$5))+0.663*(E10^2-'Summary Sheet'!$C$4^2)+0.264*((E10*LN(D10)-'Summary Sheet'!$C$4*LN('Summary Sheet'!$C$5)))) -> 49787.87478 | L10: > | M10: =GEOMEAN(K10:K10) -> 49787.87478 | N10: =M10 -> 49787.87478 | O10: > | P10: Lampsilis | Q10: Mollusk | R10: Author reported
B12: Cladoceran, Ceriodaphnia dubia | C12: S, M, A | D12: 50 | E12: 7.42 | F12: 1.1 | H12: 1900 | I12: McCauley et al. 1986 | K12: =EXP(LN(H12)-0.525*(LN(F12)-LN('Summary Sheet'!$C$6))-11.282*(E12-'Summary Sheet'!$C$4)-2.201*(LN(D12)-LN('Summary Sheet'!$C$5))+0.663*(E12^2-'Summary Sheet'!$C$4^2)+0.264*((E12*LN(D12)-'Summary Sheet'!$C$4*LN('Summary Sheet'!$C$5)))) -> 2884.460319 | M12: - | P12: Ceriodaphnia | R12: Value is from 2007 FW Cu AWQC Appendix C recommendation | S12: Lake Superior water
B13: Cladoceran, Ceriodaphnia dubia | C13: S, M, A | D13: 50.5 | E13: 7.86 | F13: 1.1 | H13: 1500 | I13: McCauley et al. 1986 | K13: =EXP(LN(H13)-0.525*(LN(F13)-LN('Summary Sheet'!$C$6))-11.282*(E13-'Summary Sheet'!$C$4)-2.201*(LN(D13)-LN('Summary Sheet'!$C$5))+0.663*(E13^2-'Summary Sheet'!$C$4^2)+0.264*((E13*LN(D13)-'Summary Sheet'!$C$4*LN('Summary Sheet'!$C$5)))) -> 2158.725257 | M13: - | P13: Ceriodaphnia | R13: Value is from 2007 FW Cu AWQC Appendix C recommendation | S13: UW-S Lake Superior lab water
B14: Cladoceran, Ceriodaphnia dubia | C14: S, M, A | D14: 50 | E14: 8.13 | F14: 1.1 | H14: 2560 | I14: McCauley et al. 1986 | K14: =EXP(LN(H14)-0.525*(LN(F14)-LN('Summary Sheet'!$C$6))-11.282*(E14-'Summary Sheet'!$C$4)-2.201*(LN(D14)-LN('Summary Sheet'!$C$5))+0.663*(E14^2-'Summary Sheet'!$C$4^2)+0.264*((E14*LN(D14)-'Summary Sheet'!$C$4*LN('Summary Sheet'!$C$5)))) -> 4056.791063 | M14: - | P14: Ceriodaphnia | R14: Value is from 2007 FW Cu AWQC Appendix C recommendation | S14: Lake Superior water
B15: Cladoceran, Ceriodaphnia dubia | C15: R, M, T | D15: 26 | E15: 7.5 | F15: 0.5 | H15: 720 | I15: ENSR 1992d | K15: =EXP(LN(H15)-0.525*(LN(F15)-LN('Summary Sheet'!$C$6))-11.282*(E15-'Summary Sheet'!$C$4)-2.201*(LN(D15)-LN('Summary Sheet'!$C$5))+0.663*(E15^2-'Summary Sheet'!$C$4^2)+0.264*((E15*LN(D15)-'Summary Sheet'!$C$4*LN('Summary Sheet'!$C$5)))) -> 1856.803488 | M15: - | P15: Ceriodaphnia | R15: Value is from 2007 FW Cu AWQC Appendix C recommendation | S15: Lab Recon water
B16: Cladoceran, Ceriodaphnia dubia | C16: R, M, T | D16: 46 | E16: 7.6 | F16: 0.5 | H16: 1880 | I16: ENSR 1992d | K16: =EXP(LN(H16)-0.525*(LN(F16)-LN('Summary Sheet'!$C$6))-11.282*(E16-'Summary Sheet'!$C$4)-2.201*(LN(D16)-LN('Summary Sheet'!$C$5))+0.663*(E16^2-'Summary Sheet'!$C$4^2)+0.264*((E16*LN(D16)-'Summary Sheet'!$C$4*LN('Summary Sheet'!$C$5)))) -> 4164.299263 | M16: - | P16: Ceriodaphnia | R16: Value is from 2007 FW Cu AWQC Appendix C recommendation | S16: Lab Recon water
B17: Cladoceran, Ceriodaphnia dubia | C17: R, M, T | D17: 96 | E17: 7.8 | F17: 0.5 | H17: 2450 | I17: ENSR 1992d | K17: =EXP(LN(H17)-0.525*(LN(F17)-LN('Summary Sheet'!$C$6))-11.282*(E17-'Summary Sheet'!$C$4)-2.201*(LN(D17)-LN('Summary Sheet'!$C$5))+0.663*(E17^2-'Summary Sheet'!$C$4^2)+0.264*((E17*LN(D17)-'Summary Sheet'!$C$4*LN('Summary Sheet'!$C$5)))) -> 4829.936435 | M17: - | P17: Ceriodaphnia | R17: Value is from 2007 FW Cu AWQC Appendix C recommendation | S17: Lab Recon water
B18: Cladoceran, Ceriodaphnia dubia | C18: S, U, NR | D18: 90 | E18: 7.15 | F18: 0.5 | H18: 3727 | I18: Fort and Stover 1995 | K18: =EXP(LN(H18)-0.525*(LN(F18)-LN('Summary Sheet'!$C$6))-11.282*(E18-'Summary Sheet'!$C$4)-2.201*(LN(D18)-LN('Summary Sheet'!$C$5))+0.663*(E18^2-'Summary Sheet'!$C$4^2)+0.264*((E18*LN(D18)-'Summary Sheet'!$C$4*LN('Summary Sheet'!$C$5)))) -> 8347.237335 | M18: - | P18: Ceriodaphnia | R18: Value is from 2007 FW Cu AWQC Appendix C recommendation | S18: Mod Hard Recon
B19: Cladoceran, Ceriodaphnia dubia | C19: S, U, NR | D19: 90 | E19: 7.15 | F19: 0.5 | H19: 5673 | I19: Fort and Stover 1995 | K19: =EXP(LN(H19)-0.525*(LN(F19)-LN('Summary Sheet'!$C$6))-11.282*(E19-'Summary Sheet'!$C$4)-2.201*(LN(D19)-LN('Summary Sheet'!$C$5))+0.663*(E19^2-'Summary Sheet'!$C$4^2)+0.264*((E19*LN(D19)-'Summary Sheet'!$C$4*LN('Summary Sheet'!$C$5)))) -> 12705.62849 | M19: - | P19: Ceriodaphnia | R19: Value is from 2007 FW Cu AWQC Appendix C recommendation | S19: Mod Hard Recon
B20: Cladoceran, Ceriodaphnia dubia | C20: S, U, NR | D20: 89 | E20: 7.6 | F20: 0.5 | H20: 2880 | I20: Soucek et al. 2001 | K20: =EXP(LN(H20)-0.525*(LN(F20)-LN('Summary Sheet'!$C$6))-11.282*(E20-'Summary Sheet'!$C$4)-2.201*(LN(D20)-LN('Summary Sheet'!$C$5))+0.663*(E20^2-'Summary Sheet'!$C$4^2)+0.264*((E20*LN(D20)-'Summary Sheet'!$C$4*LN('Summary Sheet'!$C$5)))) -> 5610.453268 | M20: - | P20: Ceriodaphnia | R20: Value is from 2007 FW Cu AWQC Appendix C recommendation | S20: Mod Hard Recon
B21: Cladoceran, Ceriodaphnia dubia | C21: S, U, T | D21: 10.6 | E21: 6.01 | F21: 0.5 | H21: 71.12 | I21: European Al Association 2009 | K21: =EXP(LN(H21)-0.525*(LN(F21)-LN('Summary Sheet'!$C$6))-11.282*(E21-'Summary Sheet'!$C$4)-2.201*(LN(D21)-LN('Summary Sheet'!$C$5))+0.663*(E21^2-'Summary Sheet'!$C$4^2)+0.264*((E21*LN(D21)-'Summary Sheet'!$C$4*LN('Summary Sheet'!$C$5)))) -> 2822.59085 | M21: - | P21: Ceriodaphnia | R21: Value is from 2007 FW Cu AWQC Appendix C recommendation | S21: Recon
B22: Cladoceran, Ceriodaphnia dubia | C22: S, U, T | D22: 10.6 | E22: 6.05 | F22: 2 | H22: 686.5 | I22: European Al Association 2009 | K22: =EXP(LN(H22)-0.525*(LN(F22)-LN('Summary Sheet'!$C$6))-11.282*(E22-'Summary Sheet'!$C$4)-2.201*(LN(D22)-LN('Summary Sheet'!$C$5))+0.663*(E22^2-'Summary Sheet'!$C$4^2)+0.264*((E22*LN(D22)-'Summary Sheet'!$C$4*LN('Summary Sheet'!$C$5)))) -> 11829.18895 | M22: - | P22: Ceriodaphnia | R22: Author reported
B23: Cladoceran, Ceriodaphnia dubia | C23: S, U, T | D23: 10.6 | E23: 6.09 | F23: 4 | H23: 1558.1 | I23: European Al Association 2009 | K23: =EXP(LN(H23)-0.525*(LN(F23)-LN('Summary Sheet'!$C$6))-11.282*(E23-'Summary Sheet'!$C$4)-2.201*(LN(D23)-LN('Summary Sheet'!$C$5))+0.663*(E23^2-'Summary Sheet'!$C$4^2)+0.264*((E23*LN(D23)-'Summary Sheet'!$C$4*LN('Summary Sheet'!$C$5)))) -> 16808.54603 | M23: - | P23: Ceriodaphnia | R23: Author reported
B24: Cladoceran, Ceriodaphnia dubia | C24: S, U, T | D24: 10.6 | E24: 6.01 | F24: 0.5 | H24: 68.1 | I24: European Al Association 2009 | K24: =EXP(LN(H24)-0.525*(LN(F24)-LN('Summary Sheet'!$C$6))-11.282*(E24-'Summary Sheet'!$C$4)-2.201*(LN(D24)-LN('Summary Sheet'!$C$5))+0.663*(E24^2-'Summary Sheet'!$C$4^2)+0.264*((E24*LN(D24)-'Summary Sheet'!$C$4*LN('Summary Sheet'!$C$5)))) -> 2702.733927 | M24: - | P24: Ceriodaphnia | R24: Value is from 2007 FW Cu AWQC Appendix C recommendation | S24: Recon
B25: Cladoceran, Ceriodaphnia dubia | C25: S, U, T | D25: 10.6 | E25: 6.03 | F25: 0.5 | H25: 163 | I25: European Al Association 2009 | K25: =EXP(LN(H25)-0.525*(LN(F25)-LN('Summary Sheet'!$C$6))-11.282*(E25-'Summary Sheet'!$C$4)-2.201*(LN(D25)-LN('Summary Sheet'!$C$5))+0.663*(E25^2-'Summary Sheet'!$C$4^2)+0.264*((E25*LN(D25)-'Summary Sheet'!$C$4*LN('Summary Sheet'!$C$5)))) -> 6131.948258 | M25: - | P25: Ceriodaphnia | R25: Value is from 2007 FW Cu AWQC Appendix C recommendation | S25: Recon
B26: Cladoceran, Ceriodaphnia dubia | C26: S, U, T | D26: 10.6 | E26: 5.97 | F26: 0.5 | H26: 178.5 | I26: European Al Association 2009 | K26: =EXP(LN(H26)-0.525*(LN(F26)-LN('Summary Sheet'!$C$6))-11.282*(E26-'Summary Sheet'!$C$4)-2.201*(LN(D26)-LN('Summary Sheet'!$C$5))+0.663*(E26^2-'Summary Sheet'!$C$4^2)+0.264*((E26*LN(D26)-'Summary Sheet'!$C$4*LN('Summary Sheet'!$C$5)))) -> 7897.253146 | M26: - | P26: Ceriodaphnia | R26: Value is from 2007 FW Cu AWQC Appendix C recommendation | S26: Recon
B27: Cladoceran, Ceriodaphnia dubia | C27: S, U, T | D27: 10.6 | E27: 5.92 | F27: 0.5 | H27: 141 | I27: European Al Association 2009 | K27: =EXP(LN(H27)-0.525*(LN(F27)-LN('Summary Sheet'!$C$6))-11.282*(E27-'Summary Sheet'!$C$4)-2.201*(LN(D27)-LN('Summary Sheet'!$C$5))+0.663*(E27^2-'Summary Sheet'!$C$4^2)+0.264*((E27*LN(D27)-'Summary Sheet'!$C$4*LN('Summary Sheet'!$C$5)))) -> 7166.873542 | M27: - | P27: Ceriodaphnia | R27: Value is from 2007 FW Cu AWQC Appendix C recommendation | S27: Recon
B28: Cladoceran, Ceriodaphnia dubia | C28: S, U, T | D28: 10.6 | E28: 6.99 | F28: 0.5 | G28: > | H28: 1300 | I28: European Al Association 2009 | J28: > | K28: =EXP(LN(H28)-0.525*(LN(F28)-LN('Summary Sheet'!$C$6))-11.282*(E28-'Summary Sheet'!$C$4)-2.201*(LN(D28)-LN('Summary Sheet'!$C$5))+0.663*(E28^2-'Summary Sheet'!$C$4^2)+0.264*((E28*LN(D28)-'Summary Sheet'!$C$4*LN('Summary Sheet'!$C$5)))) -> 6989.900375 | M28: - | P28: Ceriodaphnia | R28: Value is from 2007 FW Cu AWQC Appendix C recommendation | S28: Recon
B29: Cladoceran, Ceriodaphnia dubia | C29: S, U, T | D29: 10.6 | E29: 7.85 | F29: 0.5 | G29: > | H29: 5000 | I29: European Al Association 2009 | J29: > | K29: =EXP(LN(H29)-0.525*(LN(F29)-LN('Summary Sheet'!$C$6))-11.282*(E29-'Summary Sheet'!$C$4)-2.201*(LN(D29)-LN('Summary Sheet'!$C$5))+0.663*(E29^2-'Summary Sheet'!$C$4^2)+0.264*((E29*LN(D29)-'Summary Sheet'!$C$4*LN('Summary Sheet'!$C$5)))) -> 13283.19157 | M29: - | P29: Ceriodaphnia | R29: Value is from 2007 FW Cu AWQC Appendix C recommendation | S29: Recon
B30: Cladoceran, Ceriodaphnia dubia | C30: S, U, T | D30: 10.6 | E30: 6.8 | F30: 2 | G30: > | H30: 10000 | I30: European Al Association 2009 | J30: > | K30: =EXP(LN(H30)-0.525*(LN(F30)-LN('Summary Sheet'!$C$6))-11.282*(E30-'Summary Sheet'!$C$4)-2.201*(LN(D30)-LN('Summary Sheet'!$C$5))+0.663*(E30^2-'Summary Sheet'!$C$4^2)+0.264*((E30*LN(D30)-'Summary Sheet'!$C$4*LN('Summary Sheet'!$C$5)))) -> 34636.77074 | M30: - | P30: Ceriodaphnia | R30: Author reported
B31: Cladoceran, Ceriodaphnia dubia | C31: S, U, T | D31: 10.6 | E31: 7.82 | F31: 2 | G31: > | H31: 15000 | I31: European Al Association 2009 | J31: > | K31: =EXP(LN(H31)-0.525*(LN(F31)-LN('Summary Sheet'!$C$6))-11.282*(E31-'Summary Sheet'!$C$4)-2.201*(LN(D31)-LN('Summary Sheet'!$C$5))+0.663*(E31^2-'Summary Sheet'!$C$4^2)+0.264*((E31*LN(D31)-'Summary Sheet'!$C$4*LN('Summary Sheet'!$C$5)))) -> 19402.32549 | M31: - | P31: Ceriodaphnia | R31: Author reported
B32: Cladoceran, Ceriodaphnia dubia | C32: S, U, T | D32: 10.6 | E32: 6.77 | F32: 4 | G32: > | H32: 10000 | I32: European Al Association 2009 | J32: > | K32: =EXP(LN(H32)-0.525*(LN(F32)-LN('Summary Sheet'!$C$6))-11.282*(E32-'Summary Sheet'!$C$4)-2.201*(LN(D32)-LN('Summary Sheet'!$C$5))+0.663*(E32^2-'Summary Sheet'!$C$4^2)+0.264*((E32*LN(D32)-'Summary Sheet'!$C$4*LN('Summary Sheet'!$C$5)))) -> 25301.6174 | M32: - | P32: Ceriodaphnia | R32: Author reported
B33: Cladoceran, Ceriodaphnia dubia | C33: S, U, T | D33: 10.6 | E33: 7.66 | F33: 4 | G33: > | H33: 15000 | I33: European Al Association 2009 | J33: > | K33: =EXP(LN(H33)-0.525*(LN(F33)-LN('Summary Sheet'!$C$6))-11.282*(E33-'Summary Sheet'!$C$4)-2.201*(LN(D33)-LN('Summary Sheet'!$C$5))+0.663*(E33^2-'Summary Sheet'!$C$4^2)+0.264*((E33*LN(D33)-'Summary Sheet'!$C$4*LN('Summary Sheet'!$C$5)))) -> 14364.64223 | M33: - | P33: Ceriodaphnia | R33: Author reported
B34: Cladoceran, Ceriodaphnia dubia | C34: S, U, T | D34: 10.6 | E34: 7.9 | F34: 0.5 | G34: > | H34: 2000 | I34: European Al Association 2009 | J34: > | K34: =EXP(LN(H34)-0.525*(LN(F34)-LN('Summary Sheet'!$C$6))-11.282*(E34-'Summary Sheet'!$C$4)-2.201*(LN(D34)-LN('Summary Sheet'!$C$5))+0.663*(E34^2-'Summary Sheet'!$C$4^2)+0.264*((E34*LN(D34)-'Summary Sheet'!$C$4*LN('Summary Sheet'!$C$5)))) -> 5256.074656 | M34: - | P34: Ceriodaphnia | R34: Value is from 2007 FW Cu AWQC Appendix C recommendation | S34: Recon
B35: Cladoceran, Ceriodaphnia dubia | C35: S, U, T | D35: 10.6 | E35: 7.89 | F35: 0.5 | G35: > | H35: 2000 | I35: European Al Association 2009 | J35: > | K35: =EXP(LN(H35)-0.525*(LN(F35)-LN('Summary Sheet'!$C$6))-11.282*(E35-'Summary Sheet'!$C$4)-2.201*(LN(D35)-LN('Summary Sheet'!$C$5))+0.663*(E35^2-'Summary Sheet'!$C$4^2)+0.264*((E35*LN(D35)-'Summary Sheet'!$C$4*LN('Summary Sheet'!$C$5)))) -> 5266.068824 | M35: - | P35: Ceriodaphnia | R35: Value is from 2007 FW Cu AWQC Appendix C recommendation | S35: Recon
B36: Cladoceran, Ceriodaphnia dubia | C36: S, U, T | D36: 60 | E36: 6.04 | F36: 0.5 | H36: 110.8 | I36: European Al Association 2009 | K36: =EXP(LN(H36)-0.525*(LN(F36)-LN('Summary Sheet'!$C$6))-11.282*(E36-'Summary Sheet'!$C$4)-2.201*(LN(D36)-LN('Summary Sheet'!$C$5))+0.663*(E36^2-'Summary Sheet'!$C$4^2)+0.264*((E36*LN(D36)-'Summary Sheet'!$C$4*LN('Summary Sheet'!$C$5)))) -> 1418.596263 | M36: - | P36: Ceriodaphnia | R36: Value is from 2007 FW Cu AWQC Appendix C recommendation | S36: Recon
B37: Cladoceran, Ceriodaphnia dubia | C37: S, U, T | D37: 60 | E37: 5.98 | F37: 2 | H37: 1137.1 | I37: European Al Association 2009 | K37: =EXP(LN(H37)-0.525*(LN(F37)-LN('Summary Sheet'!$C$6))-11.282*(E37-'Summary Sheet'!$C$4)-2.201*(LN(D37)-LN('Summary Sheet'!$C$5))+0.663*(E37^2-'Summary Sheet'!$C$4^2)+0.264*((E37*LN(D37)-'Summary Sheet'!$C$4*LN('Summary Sheet'!$C$5)))) -> 8038.825127 | M37: - | P37: Ceriodaphnia | R37: Author reported
B38: Cladoceran, Ceriodaphnia dubia | C38: S, U, T | D38: 60 | E38: 5.73 | F38: 4 | H38: 8046.7 | I38: European Al Association 2009 | K38: =EXP(LN(H38)-0.525*(LN(F38)-LN('Summary Sheet'!$C$6))-11.282*(E38-'Summary Sheet'!$C$4)-2.201*(LN(D38)-LN('Summary Sheet'!$C$5))+0.663*(E38^2-'Summary Sheet'!$C$4^2)+0.264*((E38*LN(D38)-'Summary Sheet'!$C$4*LN('Summary Sheet'!$C$5)))) -> 72711.70248 | M38: - | P38: Ceriodaphnia | R38: Author reported
B39: Cladoceran, Ceriodaphnia dubia | C39: S, U, T | D39: 60 | E39: 6.71 | F39: 0.5 | G39: > | H39: 10000 | I39: European Al Association 2009 | J39: > | K39: =EXP(LN(H39)-0.525*(LN(F39)-LN('Summary Sheet'!$C$6))-11.282*(E39-'Summary Sheet'!$C$4)-2.201*(LN(D39)-LN('Summary Sheet'!$C$5))+0.663*(E39^2-'Summary Sheet'!$C$4^2)+0.264*((E39*LN(D39)-'Summary Sheet'!$C$4*LN('Summary Sheet'!$C$5)))) -> 39695.05414 | M39: - | P39: Ceriodaphnia | R39: Value is from 2007 FW Cu AWQC Appendix C recommendation | S39: Recon
B40: Cladoceran, Ceriodaphnia dubia | C40: S, U, T | D40: 60 | E40: 7.83 | F40: 0.5 | G40: > | H40: 5000 | I40: European Al Association 2009 | J40: > | K40: =EXP(LN(H40)-0.525*(LN(F40)-LN('Summary Sheet'!$C$6))-11.282*(E40-'Summary Sheet'!$C$4)-2.201*(LN(D40)-LN('Summary Sheet'!$C$5))+0.663*(E40^2-'Summary Sheet'!$C$4^2)+0.264*((E40*LN(D40)-'Summary Sheet'!$C$4*LN('Summary Sheet'!$C$5)))) -> 10587.53768 | M40: - | P40: Ceriodaphnia | R40: Value is from 2007 FW Cu AWQC Appendix C recommendation | S40: Recon
B41: Cladoceran, Ceriodaphnia dubia | C41: S, U, T | D41: 60 | E41: 6.79 | F41: 2 | G41: > | H41: 10000 | I41: European Al Association 2009 | J41: > | K41: =EXP(LN(H41)-0.525*(LN(F41)-LN('Summary Sheet'!$C$6))-11.282*(E41-'Summary Sheet'!$C$4)-2.201*(LN(D41)-LN('Summary Sheet'!$C$5))+0.663*(E41^2-'Summary Sheet'!$C$4^2)+0.264*((E41*LN(D41)-'Summary Sheet'!$C$4*LN('Summary Sheet'!$C$5)))) -> 17346.22002 | M41: - | P41: Ceriodaphnia | R41: Author reported
B42: Cladoceran, Ceriodaphnia dubia | C42: S, U, T | D42: 60 | E42: 7.67 | F42: 2 | G42: > | H42: 15000 | I42: European Al Association 2009 | J42: > | K42: =EXP(LN(H42)-0.525*(LN(F42)-LN('Summary Sheet'!$C$6))-11.282*(E42-'Summary Sheet'!$C$4)-2.201*(LN(D42)-LN('Summary Sheet'!$C$5))+0.663*(E42^2-'Summary Sheet'!$C$4^2)+0.264*((E42*LN(D42)-'Summary Sheet'!$C$4*LN('Summary Sheet'!$C$5)))) -> 15156.36011 | M42: - | P42: Ceriodaphnia | R42: Author reported
B43: Cladoceran, Ceriodaphnia dubia | C43: S, U, T | D43: 60 | E43: 6.68 | F43: 4 | G43: > | H43: 15000 | I43: European Al Association 2009 | J43: > | K43: =EXP(LN(H43)-0.525*(LN(F43)-LN('Summary Sheet'!$C$6))-11.282*(E43-'Summary Sheet'!$C$4)-2.201*(LN(D43)-LN('Summary Sheet'!$C$5))+0.663*(E43^2-'Summary Sheet'!$C$4^2)+0.264*((E43*LN(D43)-'Summary Sheet'!$C$4*LN('Summary Sheet'!$C$5)))) -> 20794.54284 | M43: - | P43: Ceriodaphnia | R43: Author reported
B44: Cladoceran, Ceriodaphnia dubia | C44: S, U, T | D44: 60 | E44: 7.62 | F44: 4 | G44: > | H44: 15000 | I44: European Al Association 2009 | J44: > | K44: =EXP(LN(H44)-0.525*(LN(F44)-LN('Summary Sheet'!$C$6))-11.282*(E44-'Summary Sheet'!$C$4)-2.201*(LN(D44)-LN('Summary Sheet'!$C$5))+0.663*(E44^2-'Summary Sheet'!$C$4^2)+0.264*((E44*LN(D44)-'Summary Sheet'!$C$4*LN('Summary Sheet'!$C$5)))) -> 10566.71679 | M44: - | P44: Ceriodaphnia | R44: Author reported
B45: Cladoceran, Ceriodaphnia dubia | C45: S, U, T | D45: 120 | E45: 6.06 | F45: 2 | H45: 3386.8 | I45: European Al Association 2009 | K45: =EXP(LN(H45)-0.525*(LN(F45)-LN('Summary Sheet'!$C$6))-11.282*(E45-'Summary Sheet'!$C$4)-2.201*(LN(D45)-LN('Summary Sheet'!$C$5))+0.663*(E45^2-'Summary Sheet'!$C$4^2)+0.264*((E45*LN(D45)-'Summary Sheet'!$C$4*LN('Summary Sheet'!$C$5)))) -> 13217.06904 | M45: - | P45: Ceriodaphnia | R45: Author reported
B46: Cladoceran, Ceriodaphnia dubia | C46: S, U, T | D46: 120 | E46: 5.6 | F46: 4 | H46: 10484.2 | I46: European Al Association 2009 | K46: =EXP(LN(H46)-0.525*(LN(F46)-LN('Summary Sheet'!$C$6))-11.282*(E46-'Summary Sheet'!$C$4)-2.201*(LN(D46)-LN('Summary Sheet'!$C$5))+0.663*(E46^2-'Summary Sheet'!$C$4^2)+0.264*((E46*LN(D46)-'Summary Sheet'!$C$4*LN('Summary Sheet'!$C$5)))) -> 81438.72324 | M46: - | P46: Ceriodaphnia | R46: Author reported
B47: Cladoceran, Ceriodaphnia dubia | C47: S, U, T | D47: 120 | E47: 6.93 | F47: 0.5 | G47: > | H47: 5000 | I47: European Al Association 2009 | J47: > | K47: =EXP(LN(H47)-0.525*(LN(F47)-LN('Summary Sheet'!$C$6))-11.282*(E47-'Summary Sheet'!$C$4)-2.201*(LN(D47)-LN('Summary Sheet'!$C$5))+0.663*(E47^2-'Summary Sheet'!$C$4^2)+0.264*((E47*LN(D47)-'Summary Sheet'!$C$4*LN('Summary Sheet'!$C$5)))) -> 11892.15615 | M47: - | P47: Ceriodaphnia | R47: Value is from 2007 FW Cu AWQC Appendix C recommendation | S47: Recon
B48: Cladoceran, Ceriodaphnia dubia | C48: S, U, T | D48: 120 | E48: 7.88 | F48: 0.5 | G48: > | H48: 5000 | I48: European Al Association 2009 | J48: > | K48: =EXP(LN(H48)-0.525*(LN(F48)-LN('Summary Sheet'!$C$6))-11.282*(E48-'Summary Sheet'!$C$4)-2.201*(LN(D48)-LN('Summary Sheet'!$C$5))+0.663*(E48^2-'Summary Sheet'!$C$4^2)+0.264*((E48*LN(D48)-'Summary Sheet'!$C$4*LN('Summary Sheet'!$C$5)))) -> 9842.999237 | M48: - | P48: Ceriodaphnia | R48: Value is from 2007 FW Cu AWQC Appendix C recommendation | S48: Recon
B49: Cladoceran, Ceriodaphnia dubia | C49: S, U, T | D49: 120 | E49: 6.76 | F49: 2 | G49: > | H49: 15000 | I49: European Al Association 2009 | J49: > | K49: =EXP(LN(H49)-0.525*(LN(F49)-LN('Summary Sheet'!$C$6))-11.282*(E49-'Summary Sheet'!$C$4)-2.201*(LN(D49)-LN('Summary Sheet'!$C$5))+0.663*(E49^2-'Summary Sheet'!$C$4^2)+0.264*((E49*LN(D49)-'Summary Sheet'!$C$4*LN('Summary Sheet'!$C$5)))) -> 20221.86118 | M49: - | P49: Ceriodaphnia | R49: Author reported
B50: Cladoceran, Ceriodaphnia dubia | C50: S, U, T | D50: 120 | E50: 7.71 | F50: 2 | G50: > | H50: 15000 | I50: European Al Association 2009 | J50: > | K50: =EXP(LN(H50)-0.525*(LN(F50)-LN('Summary Sheet'!$C$6))-11.282*(E50-'Summary Sheet'!$C$4)-2.201*(LN(D50)-LN('Summary Sheet'!$C$5))+0.663*(E50^2-'Summary Sheet'!$C$4^2)+0.264*((E50*LN(D50)-'Summary Sheet'!$C$4*LN('Summary Sheet'!$C$5)))) -> 13510.89889 | M50: - | P50: Ceriodaphnia | R50: Author reported
B51: Cladoceran, Ceriodaphnia dubia | C51: S, U, T | D51: 120 | E51: 6.6 | F51: 4 | G51: > | H51: 15000 | I51: European Al Association 2009 | J51: > | K51: =EXP(LN(H51)-0.525*(LN(F51)-LN('Summary Sheet'!$C$6))-11.282*(E51-'Summary Sheet'!$C$4)-2.201*(LN(D51)-LN('Summary Sheet'!$C$5))+0.663*(E51^2-'Summary Sheet'!$C$4^2)+0.264*((E51*LN(D51)-'Summary Sheet'!$C$4*LN('Summary Sheet'!$C$5)))) -> 16920.56142 | M51: - | P51: Ceriodaphnia | R51: Author reported
B52: Cladoceran, Ceriodaphnia dubia | C52: S, U, T | D52: 120 | E52: 7.6 | F52: 4 | G52: > | H52: 15000 | I52: European Al Association 2009 | J52: > | K52: =EXP(LN(H52)-0.525*(LN(F52)-LN('Summary Sheet'!$C$6))-11.282*(E52-'Summary Sheet'!$C$4)-2.201*(LN(D52)-LN('Summary Sheet'!$C$5))+0.663*(E52^2-'Summary Sheet'!$C$4^2)+0.264*((E52*LN(D52)-'Summary Sheet'!$C$4*LN('Summary Sheet'!$C$5)))) -> 9253.735934 | M52: - | P52: Ceriodaphnia | R52: Author reported
B53: Cladoceran, Ceriodaphnia dubia | C53: S, M, T | D53: 10.6 | E53: 6.03 | F53: 0.5 | H53: 119.71 | I53: European Al Association 2010 | K53: =EXP(LN(H53)-0.525*(LN(F53)-LN('Summary Sheet'!$C$6))-11.282*(E53-'Summary Sheet'!$C$4)-2.201*(LN(D53)-LN('Summary Sheet'!$C$5))+0.663*(E53^2-'Summary Sheet'!$C$4^2)+0.264*((E53*LN(D53)-'Summary Sheet'!$C$4*LN('Summary Sheet'!$C$5)))) -> 4503.408135 | M53: - | P53: Ceriodaphnia | R53: Value is from 2007 FW Cu AWQC Appendix C recommendation | S53: Recon
B54: Cladoceran, Ceriodaphnia dubia | C54: S, M, T | D54: 10.6 | E54: 6.03 | F54: 0.5 | H54: 274.78 | I54: European Al Association 2010 | K54: =EXP(LN(H54)-0.525*(LN(F54)-LN('Summary Sheet'!$C$6))-11.282*(E54-'Summary Sheet'!$C$4)-2.201*(LN(D54)-LN('Summary Sheet'!$C$5))+0.663*(E54^2-'Summary Sheet'!$C$4^2)+0.264*((E54*LN(D54)-'Summary Sheet'!$C$4*LN('Summary Sheet'!$C$5)))) -> 10337.03523 | M54: - | P54: Ceriodaphnia | R54: Value is from 2007 FW Cu AWQC Appendix C recommendation | S54: Recon
B55: Cladoceran, Ceriodaphnia dubia | C55: S, M, T | D55: 10.6 | E55: 6.03 | F55: 0.5 | H55: 119.98 | I55: European Al Association 2010 | K55: =EXP(LN(H55)-0.525*(LN(F55)-LN('Summary Sheet'!$C$6))-11.282*(E55-'Summary Sheet'!$C$4)-2.201*(LN(D55)-LN('Summary Sheet'!$C$5))+0.663*(E55^2-'Summary Sheet'!$C$4^2)+0.264*((E55*LN(D55)-'Summary Sheet'!$C$4*LN('Summary Sheet'!$C$5)))) -> 4513.56535 | M55: - | P55: Ceriodaphnia | R55: Value is from 2007 FW Cu AWQC Appendix C recommendation | S55: Recon
B56: Cladoceran, Ceriodaphnia dubia | C56: S, M, T | D56: 10.6 | E56: 6.07 | F56: 0.5 | H56: 92.495 | I56: European Al Association 2010 | K56: =EXP(LN(H56)-0.525*(LN(F56)-LN('Summary Sheet'!$C$6))-11.282*(E56-'Summary Sheet'!$C$4)-2.201*(LN(D56)-LN('Summary Sheet'!$C$5))+0.663*(E56^2-'Summary Sheet'!$C$4^2)+0.264*((E56*LN(D56)-'Summary Sheet'!$C$4*LN('Summary Sheet'!$C$5)))) -> 3131.335308 | M56: - | P56: Ceriodaphnia | R56: Value is from 2007 FW Cu AWQC Appendix C recommendation | S56: Recon
B57: Cladoceran, Ceriodaphnia dubia | C57: S, M, T | D57: 10.6 | E57: 6.09 | F57: 0.5 | H57: 313.37 | I57: European Al Association 2010 | K57: =EXP(LN(H57)-0.525*(LN(F57)-LN('Summary Sheet'!$C$6))-11.282*(E57-'Summary Sheet'!$C$4)-2.201*(LN(D57)-LN('Summary Sheet'!$C$5))+0.663*(E57^2-'Summary Sheet'!$C$4^2)+0.264*((E57*LN(D57)-'Summary Sheet'!$C$4*LN('Summary Sheet'!$C$5)))) -> 10071.97133 | M57: - | P57: Ceriodaphnia | R57: Value is from 2007 FW Cu AWQC Appendix C recommendation | S57: Recon
B58: Cladoceran, Ceriodaphnia dubia | C58: S, M, T | D58: 10.6 | E58: 6.1 | F58: 0.5 | H58: 332.35 | I58: European Al Association 2010 | K58: =EXP(LN(H58)-0.525*(LN(F58)-LN('Summary Sheet'!$C$6))-11.282*(E58-'Summary Sheet'!$C$4)-2.201*(LN(D58)-LN('Summary Sheet'!$C$5))+0.663*(E58^2-'Summary Sheet'!$C$4^2)+0.264*((E58*LN(D58)-'Summary Sheet'!$C$4*LN('Summary Sheet'!$C$5)))) -> 10410.27016 | M58: - | P58: Ceriodaphnia | R58: Value is from 2007 FW Cu AWQC Appendix C recommendation | S58: Recon
B59: Cladoceran, Ceriodaphnia dubia | C59: S, M, T | D59: 10.6 | E59: 7.08 | F59: 0.5 | G59: > | H59: 886.4 | I59: European Al Association 2010 | J59: > | K59: =EXP(LN(H59)-0.525*(LN(F59)-LN('Summary Sheet'!$C$6))-11.282*(E59-'Summary Sheet'!$C$4)-2.201*(LN(D59)-LN('Summary Sheet'!$C$5))+0.663*(E59^2-'Summary Sheet'!$C$4^2)+0.264*((E59*LN(D59)-'Summary Sheet'!$C$4*LN('Summary Sheet'!$C$5)))) -> 4228.240154 | M59: - | P59: Ceriodaphnia | R59: Value is from 2007 FW Cu AWQC Appendix C recommendation | S59: Recon
B60: Cladoceran, Ceriodaphnia dubia | C60: S, M, T | D60: 10.6 | E60: 7.79 | F60: 0.5 | G60: > | H60: 4278.3 | I60: European Al Association 2010 | J60: > | K60: =EXP(LN(H60)-0.525*(LN(F60)-LN('Summary Sheet'!$C$6))-11.282*(E60-'Summary Sheet'!$C$4)-2.201*(LN(D60)-LN('Summary Sheet'!$C$5))+0.663*(E60^2-'Summary Sheet'!$C$4^2)+0.264*((E60*LN(D60)-'Summary Sheet'!$C$4*LN('Summary Sheet'!$C$5)))) -> 11564.98662 | M60: - | P60: Ceriodaphnia | R60: Value is from 2007 FW Cu AWQC Appendix C recommendation | S60: Recon
B61: Cladoceran, Ceriodaphnia dubia | C61: S, M, T | D61: 10.6 | E61: 7.53 | F61: 0.5 | H61: 132.04 | I61: European Al Association 2010 | K61: =EXP(LN(H61)-0.525*(LN(F61)-LN('Summary Sheet'!$C$6))-11.282*(E61-'Summary Sheet'!$C$4)-2.201*(LN(D61)-LN('Summary Sheet'!$C$5))+0.663*(E61^2-'Summary Sheet'!$C$4^2)+0.264*((E61*LN(D61)-'Summary Sheet'!$C$4*LN('Summary Sheet'!$C$5)))) -> 406.6450503 | M61: - | P61: Ceriodaphnia | R61: Value is from 2007 FW Cu AWQC Appendix C recommendation | S61: Recon
B62: Cladoceran, Ceriodaphnia dubia | C62: S, M, T | D62: 60 | E62: 6.01 | F62: 0.5 | H62: 463.26 | I62: European Al Association 2010 | K62: =EXP(LN(H62)-0.525*(LN(F62)-LN('Summary Sheet'!$C$6))-11.282*(E62-'Summary Sheet'!$C$4)-2.201*(LN(D62)-LN('Summary Sheet'!$C$5))+0.663*(E62^2-'Summary Sheet'!$C$4^2)+0.264*((E62*LN(D62)-'Summary Sheet'!$C$4*LN('Summary Sheet'!$C$5)))) -> 6338.155551 | M62: - | P62: Ceriodaphnia | R62: Value is from 2007 FW Cu AWQC Appendix C recommendation | S62: Recon
B63: Cladoceran, Ceriodaphnia dubia | C63: S, M, T | D63: 60 | E63: 5.99 | F63: 0.5 | G63: > | H63: 859 | I63: European Al Association 2010 | J63: > | K63: =EXP(LN(H63)-0.525*(LN(F63)-LN('Summary Sheet'!$C$6))-11.282*(E63-'Summary Sheet'!$C$4)-2.201*(LN(D63)-LN('Summary Sheet'!$C$5))+0.663*(E63^2-'Summary Sheet'!$C$4^2)+0.264*((E63*LN(D63)-'Summary Sheet'!$C$4*LN('Summary Sheet'!$C$5)))) -> 12292.26416 | M63: =GEOMEAN(K12:K63) -> 8501.087374 | P63: Ceriodaphnia | R63: Value is from 2007 FW Cu AWQC Appendix C recommendation | S63: Recon
B65: Cladoceran, Ceriodaphnia reticulata | C65: F, M, T | D65: 45.1 | E65: 6 | F65: 1.1 | H65: 304 | I65: Shephard 1983 | K65: =EXP(LN(H65)-0.525*(LN(F65)-LN('Summary Sheet'!$C$6))-11.282*(E65-'Summary Sheet'!$C$4)-2.201*(LN(D65)-LN('Summary Sheet'!$C$5))+0.663*(E65^2-'Summary Sheet'!$C$4^2)+0.264*((E65*LN(D65)-'Summary Sheet'!$C$4*LN('Summary Sheet'!$C$5)))) -> 3353.155418 | M65: - | P65: Ceriodaphnia | R65: Value is from 2007 FW Cu AWQC Appendix C recommendation | S65: Lake Superior water
B66: Cladoceran, Ceriodaphnia reticulata | C66: F, M, T | D66: 4 | E66: 5.5 | F66: 1.1 | H66: 362 | I66: Shephard 1983 | K66: =EXP(LN(H66)-0.525*(LN(F66)-LN('Summary Sheet'!$C$6))-11.282*(E66-'Summary Sheet'!$C$4)-2.201*(LN(D66)-LN('Summary Sheet'!$C$5))+0.663*(E66^2-'Summary Sheet'!$C$4^2)+0.264*((E66*LN(D66)-'Summary Sheet'!$C$4*LN('Summary Sheet'!$C$5)))) -> 92297.23629 | M66: =GEOMEAN(K65:K66) -> 17592.24198 | N66: =GEOMEAN(M12:M66) -> 12229.19401 | P66: Ceriodaphnia | Q66: Invert | R66: Value is from 2007 FW Cu AWQC Appendix C recommendation | S66: Lake Superior/DI Mix
B68: Cladoceran, Daphnia magna | C68: S, U, NR | D68: 45.3 | E68: 7.74 | F68: 1.1 | H68: 3900 | I68: Biesinger and Christensen 1972 | K68: =EXP(LN(H68)-0.525*(LN(F68)-LN('Summary Sheet'!$C$6))-11.282*(E68-'Summary Sheet'!$C$4)-2.201*(LN(D68)-LN('Summary Sheet'!$C$5))+0.663*(E68^2-'Summary Sheet'!$C$4^2)+0.264*((E68*LN(D68)-'Summary Sheet'!$C$4*LN('Summary Sheet'!$C$5)))) -> 5644.126091 | M68: - | P68: Daphnia | R68: Value is from 2007 FW Cu AWQC Appendix C recommendation | S68: Lake Superior water
B69: Cladoceran, Daphnia magna | C69: S, M, T | D69: 220 | E69: 7.6 | F69: 1.6 | H69: 38200 | I69: Kimball 1978 | K69: =EXP(LN(H69)-0.525*(LN(F69)-LN('Summary Sheet'!$C$6))-11.282*(E69-'Summary Sheet'!$C$4)-2.201*(LN(D69)-LN('Summary Sheet'!$C$5))+0.663*(E69^2-'Summary Sheet'!$C$4^2)+0.264*((E69*LN(D69)-'Summary Sheet'!$C$4*LN('Summary Sheet'!$C$5)))) -> 33882.92757 | M69: - | P69: Daphnia | R69: Value is from 2007 FW Cu AWQC Appendix C recommendation | S69: Well water
B70: Cladoceran, Daphnia magna | C70: S, U, T | D70: 45.1 | E70: 7.25 | F70: 1.1 | H70: 2800 | I70: Shephard 1983 | K70: =EXP(LN(H70)-0.525*(LN(F70)-LN('Summary Sheet'!$C$6))-11.282*(E70-'Summary Sheet'!$C$4)-2.201*(LN(D70)-LN('Summary Sheet'!$C$5))+0.663*(E70^2-'Summary Sheet'!$C$4^2)+0.264*((E70*LN(D70)-'Summary Sheet'!$C$4*LN('Summary Sheet'!$C$5)))) -> 4785.628932 | M70: - | P70: Daphnia | R70: Value is from 2007 FW Cu AWQC Appendix C recommendation | S70: Lake Superior water
B71: Cladoceran, Daphnia magna | C71: S, U, T | D71: 168 | E71: 5.99 | F71: 0.5 | H71: 500 | I71: European Al Association 2009 | J71: > | K71: =EXP(LN(H71)-0.525*(LN(F71)-LN('Summary Sheet'!$C$6))-11.282*(E71-'Summary Sheet'!$C$4)-2.201*(LN(D71)-LN('Summary Sheet'!$C$5))+0.663*(E71^2-'Summary Sheet'!$C$4^2)+0.264*((E71*LN(D71)-'Summary Sheet'!$C$4*LN('Summary Sheet'!$C$5)))) -> 3780.347495 | M71: - | P71: Daphnia | Q71: Invert | R71: Value is from 2007 FW Cu AWQC Appendix C recommendation | S71: Recon
B72: Cladoceran, Daphnia magna | C72: S, U, T | D72: 168 | E72: 7.92 | F72: 0.5 | H72: 795.02 | I72: European Al Association 2009 | K72: =EXP(LN(H72)-0.525*(LN(F72)-LN('Summary Sheet'!$C$6))-11.282*(E72-'Summary Sheet'!$C$4)-2.201*(LN(D72)-LN('Summary Sheet'!$C$5))+0.663*(E72^2-'Summary Sheet'!$C$4^2)+0.264*((E72*LN(D72)-'Summary Sheet'!$C$4*LN('Summary Sheet'!$C$5)))) -> 1535.988481 | M72: =GEOMEAN(K68:K72) -> 5560.159724 | N72: =M72 -> 5560.159724 | P72: Daphnia | Q72: Invert | R72: Value is from 2007 FW Cu AWQC Appendix C recommendation | S72: Recon
B74: Ostracod, Stenocypris major | C74: R, M, T | D74: 15.63 | E74: 6.51 | F74: 1.6 | H74: 3101.96 | I74: Shuhaimi-Othman et al. 2011a | K74: =EXP(LN(H74)-0.525*(LN(F74)-LN('Summary Sheet'!$C$6))-11.282*(E74-'Summary Sheet'!$C$4)-2.201*(LN(D74)-LN('Summary Sheet'!$C$5))+0.663*(E74^2-'Summary Sheet'!$C$4^2)+0.264*((E74*LN(D74)-'Summary Sheet'!$C$4*LN('Summary Sheet'!$C$5)))) -> 17049.4139 | M74: =K74 -> 17049.4139 | N74: =M74 -> 17049.4139 | P74: Stenocypris | Q74: Invert | R74: Value is from 2007 FW Cu AWQC Appendix C recommendation | S74: tap water (Malaysia)
B76: Amphipod, Crangonyx pseudogracilis | C76: R, U, T | D76: 50 | E76: 6.75 | F76: 1.6 | H76: 9190 | I76: Martin and Holdich 1986 | K76: =EXP(LN(H76)-0.525*(LN(F76)-LN('Summary Sheet'!$C$6))-11.282*(E76-'Summary Sheet'!$C$4)-2.201*(LN(D76)-LN('Summary Sheet'!$C$5))+0.663*(E76^2-'Summary Sheet'!$C$4^2)+0.264*((E76*LN(D76)-'Summary Sheet'!$C$4*LN('Summary Sheet'!$C$5)))) -> 20316.05536 | M76: =K76 -> 20316.05536 | N76: =M76 -> 20316.05536 | P76: Crangonyx | Q76: Invert | R76: Value is from 2007 FW Cu AWQC Appendix C recommendation | S76: tap water (UK)
B78: Amphipod, Hyalella azteca | C78: F, M, T | D78: 105 | E78: 6.13 | F78: 0.48 | G78: > | H78: 5997 | I78: Wang et al. 2016; Wang et al. 2017 | J78: > | K78: =EXP(LN(H78)-0.525*(LN(F78)-LN('Summary Sheet'!$C$6))-11.282*(E78-'Summary Sheet'!$C$4)-2.201*(LN(D78)-LN('Summary Sheet'!$C$5))+0.663*(E78^2-'Summary Sheet'!$C$4^2)+0.264*((E78*LN(D78)-'Summary Sheet'!$C$4*LN('Summary Sheet'!$C$5)))) -> 46730.44272 | L78: > | M78: =K78 -> 46730.44272 | N78: =M78 -> 46730.44272 | O78: > | P78: Hyalella | Q78: Invert | R78: Author reported
B80: Stonefly, Acroneuria sp. | C80: S, M, T | D80: 47.4 | E80: 7.46 | F80: 1.1 | G80: > | H80: 22600 | I80: Call et al. 1984 | J80: > | K80: =EXP(LN(H80)-0.525*(LN(F80)-LN('Summary Sheet'!$C$6))-11.282*(E80-'Summary Sheet'!$C$4)-2.201*(LN(D80)-LN('Summary Sheet'!$C$5))+0.663*(E80^2-'Summary Sheet'!$C$4^2)+0.264*((E80*LN(D80)-'Summary Sheet'!$C$4*LN('Summary Sheet'!$C$5)))) -> 34207.60148 | L80: > | M80: =K80 -> 34207.60148 | N80: =M80 -> 34207.60148 | O80: > | P80: Acroneuria | Q80: Invert | R80: Value is from 2007 FW Cu AWQC Appendix C recommendation | S80: Lake Superior water
B82: Midge, Chironomus plumosus | C82: S, U, T | D82: 80 | E82: 7 | F82: 1.6 | H82: 30000 | I82: Fargasova 2001 | K82: =EXP(LN(H82)-0.525*(LN(F82)-LN('Summary Sheet'!$C$6))-11.282*(E82-'Summary Sheet'!$C$4)-2.201*(LN(D82)-LN('Summary Sheet'!$C$5))+0.663*(E82^2-'Summary Sheet'!$C$4^2)+0.264*((E82*LN(D82)-'Summary Sheet'!$C$4*LN('Summary Sheet'!$C$5)))) -> 42323.29572 | M82: =K82 -> 42323.29572 | N82: =M82 -> 42323.29572 | P82: Chironomus | Q82: Invert | R82: Value is from 2007 FW Cu AWQC Appendix C recommendation | S82: tap water (Slovakia)
B84: Midge, Paratanytarsus dissimilis | C84: S, M, T | D84: 17.43 | E84: 7.28 | F84: 2.8 | G84: > | H84: 77700 | I84: Lamb and Bailey 1981, 1983 | J84: > | K84: =EXP(LN(H84)-0.525*(LN(F84)-LN('Summary Sheet'!$C$6))-11.282*(E84-'Summary Sheet'!$C$4)-2.201*(LN(D84)-LN('Summary Sheet'!$C$5))+0.663*(E84^2-'Summary Sheet'!$C$4^2)+0.264*((E84*LN(D84)-'Summary Sheet'!$C$4*LN('Summary Sheet'!$C$5)))) -> 103997.5547 | L84: > | M84: =K84 -> 103997.5547 | N84: =M84 -> 103997.5547 | O84: > | P84: Paratanytarsus | Q84: Invert | R84: Value is from 2007 FW Cu AWQC Appendix C recommendation | S84: Liberty Lake, Washington
B86: Rainbow trout, Oncorhynchus mykiss | C86: F, M, T | D86: 27.4 | E86: 7.58 | F86: 0.5 | G86: > | H86: 9840 | I86: Gundersen et al. 1994 | J86: > | K86: =EXP(LN(H86)-0.503*(LN(F86)-LN('Summary Sheet'!$C$6))-3.131*(E86-'Summary Sheet'!$C$4)-3.443*(LN(D86)-LN('Summary Sheet'!$C$5))+0.494*(E86*LN(D86)-'Summary Sheet'!$C$4*LN('Summary Sheet'!$C$5))) -> 34306.35658 | M86: - | P86: Oncorhynchus | R86: Value is from 2007 FW Cu AWQC Appendix C recommendation | S86: RO treated well water: then added salts
B87: Rainbow trout, Oncorhynchus mykiss | C87: F, M, T | D87: 45.2 | E87: 7.62 | F87: 0.5 | G87: > | H87: 8070 | I87: Gundersen et al. 1994 | J87: > | K87: =EXP(LN(H87)-0.503*(LN(F87)-LN('Summary Sheet'!$C$6))-3.131*(E87-'Summary Sheet'!$C$4)-3.443*(LN(D87)-LN('Summary Sheet'!$C$5))+0.494*(E87*LN(D87)-'Summary Sheet'!$C$4*LN('Summary Sheet'!$C$5))) -> 31125.35542 | M87: - | P87: Oncorhynchus | R87: Value is from 2007 FW Cu AWQC Appendix C recommendation | S87: RO treated well water: then added salts
B88: Rainbow trout, Oncorhynchus mykiss | C88: F, M, T | D88: 89.5 | E88: 7.58 | F88: 0.5 | G88: > | H88: 8160 | I88: Gundersen et al. 1994 | J88: > | K88: =EXP(LN(H88)-0.503*(LN(F88)-LN('Summary Sheet'!$C$6))-3.131*(E88-'Summary Sheet'!$C$4)-3.443*(LN(D88)-LN('Summary Sheet'!$C$5))+0.494*(E88*LN(D88)-'Summary Sheet'!$C$4*LN('Summary Sheet'!$C$5))) -> 40651.14564 | M88: - | P88: Oncorhynchus | R88: Value is from 2007 FW Cu AWQC Appendix C recommendation | S88: RO treated well water: then added salts
B89: Rainbow trout, Oncorhynchus mykiss | C89: F, M, T | D89: 130.4 | E89: 7.58 | F89: 0.5 | G89: > | H89: 8200 | I89: Gundersen et al. 1994 | J89: > | K89: =EXP(LN(H89)-0.503*(LN(F89)-LN('Summary Sheet'!$C$6))-3.131*(E89-'Summary Sheet'!$C$4)-3.443*(LN(D89)-LN('Summary Sheet'!$C$5))+0.494*(E89*LN(D89)-'Summary Sheet'!$C$4*LN('Summary Sheet'!$C$5))) -> 45759.50321 | M89: - | P89: Oncorhynchus | R89: Value is from 2007 FW Cu AWQC Appendix C recommendation | S89: RO treated well water: then added salts
B90: Rainbow trout, Oncorhynchus mykiss | C90: F, M, T | D90: 23.2 | E90: 8.25 | F90: 0.5 | H90: 6170 | I90: Gundersen et al. 1994 | K90: =EXP(LN(H90)-0.503*(LN(F90)-LN('Summary Sheet'!$C$6))-3.131*(E90-'Summary Sheet'!$C$4)-3.443*(LN(D90)-LN('Summary Sheet'!$C$5))+0.494*(E90*LN(D90)-'Summary Sheet'!$C$4*LN('Summary Sheet'!$C$5))) -> 7108.456798 | M90: - | P90: Oncorhynchus | R90: Value is from 2007 FW Cu AWQC Appendix C recommendation | S90: RO treated well water: then added salts
B91: Rainbow trout, Oncorhynchus mykiss | C91: F, M, T | D91: 35 | E91: 8.26 | F91: 0.5 | H91: 6170 | I91: Gundersen et al. 1994 | K91: =EXP(LN(H91)-0.503*(LN(F91)-LN('Summary Sheet'!$C$6))-3.131*(E91-'Summary Sheet'!$C$4)-3.443*(LN(D91)-LN('Summary Sheet'!$C$5))+0.494*(E91*LN(D91)-'Summary Sheet'!$C$4*LN('Summary Sheet'!$C$5))) -> 9094.046109 | M91: - | P91: Oncorhynchus | R91: Value is from 2007 FW Cu AWQC Appendix C recommendation | S91: RO treated well water: then added salts
B92: Rainbow trout, Oncorhynchus mykiss | C92: F, M, T | D92: 83.6 | E92: 8.29 | F92: 0.5 | H92: 7670 | I92: Gundersen et al. 1994 | K92: =EXP(LN(H92)-0.503*(LN(F92)-LN('Summary Sheet'!$C$6))-3.131*(E92-'Summary Sheet'!$C$4)-3.443*(LN(D92)-LN('Summary Sheet'!$C$5))+0.494*(E92*LN(D92)-'Summary Sheet'!$C$4*LN('Summary Sheet'!$C$5))) -> 19142.62992 | M92: - | P92: Oncorhynchus | R92: Value is from 2007 FW Cu AWQC Appendix C recommendation | S92: RO treated well water: then added salts
B93: Rainbow trout, Oncorhynchus mykiss | C93: F, M, T | D93: 115.8 | E93: 8.3 | F93: 0.5 | H93: 6930 | I93: Gundersen et al. 1994 | K93: =EXP(LN(H93)-0.503*(LN(F93)-LN('Summary Sheet'!$C$6))-3.131*(E93-'Summary Sheet'!$C$4)-3.443*(LN(D93)-LN('Summary Sheet'!$C$5))+0.494*(E93*LN(D93)-'Summary Sheet'!$C$4*LN('Summary Sheet'!$C$5))) -> 21224.26759 | M93: =GEOMEAN(K86:K93) -> 21861.31215 | N93: =M93 -> 21861.31215 | P93: Oncorhynchus | Q93: Fish | R93: Value is from 2007 FW Cu AWQC Appendix C recommendation | S93: RO treated well water: then added salts
B95: Atlantic salmon, Salmo salar | C95: S, U, T | D95: 6.8 | E95: 5.5 | F95: 0.5 | H95: 584 | I95: Hamilton and Haines 1995 | K95: =EXP(LN(H95)-0.503*(LN(F95)-LN('Summary Sheet'!$C$6))-3.131*(E95-'Summary Sheet'!$C$4)-3.443*(LN(D95)-LN('Summary Sheet'!$C$5))+0.494*(E95*LN(D95)-'Summary Sheet'!$C$4*LN('Summary Sheet'!$C$5))) -> 125665.034 | M95: - | P95: Salmo | R95: Value is from 2007 FW Cu AWQC Appendix C recommendation | S95: Soft recon
B96: Atlantic salmon, Salmo salar | C96: S, U, T | D96: 6.8 | E96: 6.5 | F96: 0.5 | H96: 599 | I96: Hamilton and Haines 1995 | K96: =EXP(LN(H96)-0.503*(LN(F96)-LN('Summary Sheet'!$C$6))-3.131*(E96-'Summary Sheet'!$C$4)-3.443*(LN(D96)-LN('Summary Sheet'!$C$5))+0.494*(E96*LN(D96)-'Summary Sheet'!$C$4*LN('Summary Sheet'!$C$5))) -> 14511.48337 | M96: =GEOMEAN(K95:K96) -> 42703.4665 | N96: =M96 -> 42703.4665 | P96: Salmo | Q96: Fish | R96: Value is from 2007 FW Cu AWQC Appendix C recommendation | S96: Soft recon
B98: Brook trout, Salvelinus fontinalis | C98: S, U, T | D98: 40 | E98: 5.6 | F98: 1.6 | H98: 6530 | I98: Tandjung 1982 | K98: =EXP(LN(H98)-0.503*(LN(F98)-LN('Summary Sheet'!$C$6))-3.131*(E98-'Summary Sheet'!$C$4)-3.443*(LN(D98)-LN('Summary Sheet'!$C$5))+0.494*(E98*LN(D98)-'Summary Sheet'!$C$4*LN('Summary Sheet'!$C$5))) -> 189711.8357 | M98: - | P98: Salvelinus | R98: Value is from 2007 FW Cu AWQC Appendix C recommendation | S98: well water/DI mix
B99: Brook trout, Salvelinus fontinalis | C99: S, U, T | D99: 18 | E99: 5.6 | F99: 1.6 | H99: 3400 | I99: Tandjung 1982 | K99: =EXP(LN(H99)-0.503*(LN(F99)-LN('Summary Sheet'!$C$6))-3.131*(E99-'Summary Sheet'!$C$4)-3.443*(LN(D99)-LN('Summary Sheet'!$C$5))+0.494*(E99*LN(D99)-'Summary Sheet'!$C$4*LN('Summary Sheet'!$C$5))) -> 169549.5242 | M99: - | P99: Salvelinus | R99: Value is from 2007 FW Cu AWQC Appendix C recommendation | S99: well water/DI mix
B100: Brook trout, Salvelinus fontinalis | C100: S, U, T | D100: 2 | E100: 5.6 | F100: 1.6 | H100: 370 | I100: Tandjung 1982 | K100: =EXP(LN(H100)-0.503*(LN(F100)-LN('Summary Sheet'!$C$6))-3.131*(E100-'Summary Sheet'!$C$4)-3.443*(LN(D100)-LN('Summary Sheet'!$C$5))+0.494*(E100*LN(D100)-'Summary Sheet'!$C$4*LN('Summary Sheet'!$C$5))) -> 81594.30814 | M100: =GEOMEAN(K98:K100) -> 137937.9039 | N100: =M100 -> 137937.9039 | P100: Salvelinus | Q100: Fish | R100: Value is from 2007 FW Cu AWQC Appendix C recommendation | S100: well water/DI mix
B102: Green sunfish, Lepomis cyanellus | C102: S, M, T | D102: 47.4 | E102: 7.55 | F102: 1.1 | G102: > | H102: 50000 | I102: Call et al. 1984 | J102: > | K102: =EXP(LN(H102)-0.503*(LN(F102)-LN('Summary Sheet'!$C$6))-3.131*(E102-'Summary Sheet'!$C$4)-3.443*(LN(D102)-LN('Summary Sheet'!$C$5))+0.494*(E102*LN(D102)-'Summary Sheet'!$C$4*LN('Summary Sheet'!$C$5))) -> 143495.8286 | L102: > | M102: =K102 -> 143495.8286 | N102: =M102 -> 143495.8286 | O102: > | P102: Lepomis | Q102: Fish | R102: Value is from 2007 FW Cu AWQC Appendix C recommendation | S102: Lake Superior water
B104: Rio Grande silvery minnow, Hybognathus amarus | C104: R, M, T | D104: 140 | E104: 8.1 | F104: 0.5 | G104: > | H104: 59100 | I104: Buhl 2002 | J104: > | K104: =EXP(LN(H104)-0.503*(LN(F104)-LN('Summary Sheet'!$C$6))-3.131*(E104-'Summary Sheet'!$C$4)-3.443*(LN(D104)-LN('Summary Sheet'!$C$5))+0.494*(E104*LN(D104)-'Summary Sheet'!$C$4*LN('Summary Sheet'!$C$5))) -> 235380.6692 | L104: > | M104: =K104 -> 235380.6692 | N104: =M104 -> 235380.6692 | O104: > | P104: Hybognathus | Q104: Fish | R104: Value is from 2007 FW Cu AWQC Appendix C recommendation | S104: Recon water
B106: Fathead minnow, Pimephales promelas | C106: S, M, T | D106: 47.4 | E106: 7.61 | F106: 1.1 | G106: > | H106: 48200 | I106: Call et al. 1984 | J106: > | K106: =EXP(LN(H106)-0.503*(LN(F106)-LN('Summary Sheet'!$C$6))-3.131*(E106-'Summary Sheet'!$C$4)-3.443*(LN(D106)-LN('Summary Sheet'!$C$5))+0.494*(E106*LN(D106)-'Summary Sheet'!$C$4*LN('Summary Sheet'!$C$5))) -> 128528.6124 | M106: - | P106: Pimephales | R106: Value is from 2007 FW Cu AWQC Appendix C recommendation | S106: Lake Superior water
B107: Fathead minnow, Pimephales promelas | C107: S, M, T | D107: 47.4 | E107: 8.05 | F107: 1.1 | G107: > | H107: 49800 | I107: Call et al. 1984 | J107: > | K107: =EXP(LN(H107)-0.503*(LN(F107)-LN('Summary Sheet'!$C$6))-3.131*(E107-'Summary Sheet'!$C$4)-3.443*(LN(D107)-LN('Summary Sheet'!$C$5))+0.494*(E107*LN(D107)-'Summary Sheet'!$C$4*LN('Summary Sheet'!$C$5))) -> 77468.98283 | M107: - | P107: Pimephales | R107: Value is from 2007 FW Cu AWQC Appendix C recommendation | S107: Lake Superior water
B108: Fathead minnow, Pimephales promelas | C108: R, M, T | D108: 26 | E108: 7.8 | F108: 0.5 | H108: 1160 | I108: ENSR 1992c | K108: =EXP(LN(H108)-0.503*(LN(F108)-LN('Summary Sheet'!$C$6))-3.131*(E108-'Summary Sheet'!$C$4)-3.443*(LN(D108)-LN('Summary Sheet'!$C$5))+0.494*(E108*LN(D108)-'Summary Sheet'!$C$4*LN('Summary Sheet'!$C$5))) -> 2848.382315 | M108: - | P108: Pimephales | R108: Value is from 2007 FW Cu AWQC Appendix C recommendation | S108: Lab Recon water
B109: Fathead minnow, Pimephales promelas | C109: R, M, T | D109: 46 | E109: 7.6 | F109: 0.5 | H109: 8180 | I109: ENSR 1992c | K109: =EXP(LN(H109)-0.503*(LN(F109)-LN('Summary Sheet'!$C$6))-3.131*(E109-'Summary Sheet'!$C$4)-3.443*(LN(D109)-LN('Summary Sheet'!$C$5))+0.494*(E109*LN(D109)-'Summary Sheet'!$C$4*LN('Summary Sheet'!$C$5))) -> 32524.41704 | M109: - | P109: Pimephales | R109: Value is from 2007 FW Cu AWQC Appendix C recommendation | S109: Lab Recon water
B110: Fathead minnow, Pimephales promelas | C110: R, M, T | D110: 96 | E110: 8.1 | F110: 0.5 | H110: 20300 | I110: ENSR 1992c | K110: =EXP(LN(H110)-0.503*(LN(F110)-LN('Summary Sheet'!$C$6))-3.131*(E110-'Summary Sheet'!$C$4)-3.443*(LN(D110)-LN('Summary Sheet'!$C$5))+0.494*(E110*LN(D110)-'Summary Sheet'!$C$4*LN('Summary Sheet'!$C$5))) -> 65491.01356 | M110: - | P110: Pimephales | R110: Value is from 2007 FW Cu AWQC Appendix C recommendation | S110: Lab Recon water
B111: Fathead minnow, Pimephales promelas | C111: R, M, T | D111: 194 | E111: 8.1 | F111: 0.5 | H111: 44800 | I111: ENSR 1992c | K111: =EXP(LN(H111)-0.503*(LN(F111)-LN('Summary Sheet'!$C$6))-3.131*(E111-'Summary Sheet'!$C$4)-3.443*(LN(D111)-LN('Summary Sheet'!$C$5))+0.494*(E111*LN(D111)-'Summary Sheet'!$C$4*LN('Summary Sheet'!$C$5))) -> 214077.9401 | M111: - | P111: Pimephales | R111: Value is from 2007 FW Cu AWQC Appendix C recommendation | S111: Lab Recon water
B112: Fathead minnow, Pimephales promelas | C112: R, M, T | D112: 140 | E112: 8.1 | F112: 0.5 | G112: > | H112: 59100 | I112: Buhl 2002 | J112: > | K112: =EXP(LN(H112)-0.503*(LN(F112)-LN('Summary Sheet'!$C$6))-3.131*(E112-'Summary Sheet'!$C$4)-3.443*(LN(D112)-LN('Summary Sheet'!$C$5))+0.494*(E112*LN(D112)-'Summary Sheet'!$C$4*LN('Summary Sheet'!$C$5))) -> 235380.6692 | M112: =GEOMEAN(K106:K112) -> 60722.74752 | N112: =M112 -> 60722.74752 | P112: Pimephales | Q112: Fish | R112: Value is from 2007 FW Cu AWQC Appendix C recommendation | S112: Recon water
B114: Smallmouth bass, Micropterus dolomieui | C114: S, M, T | D114: 12.45 | E114: 5.05 | F114: 1.6 | H114: 130 | I114: Kane and Rabeni 1987 | K114: =EXP(LN(H114)-0.503*(LN(F114)-LN('Summary Sheet'!$C$6))-3.131*(E114-'Summary Sheet'!$C$4)-3.443*(LN(D114)-LN('Summary Sheet'!$C$5))+0.494*(E114*LN(D114)-'Summary Sheet'!$C$4*LN('Summary Sheet'!$C$5))) -> 23464.21904 | M114: =GEOMEAN(K114:K114) -> 23464.21904 | N114: =M114 -> 23464.21904 | P114: Micropterus | Q114: Fish | R114: Value is from 2007 FW Cu AWQC Appendix C recommendation | S114: well water/DI mix
B116: Green tree frog, Hyla cinerea | C116: R, M, T | D116: 4.55 | E116: 5.49 | F116: 0.5 | G116: > | H116: 405.2 | I116: Jung and Jagoe 1995 | J116: > | K116: =EXP(LN(H116)-0.503*(LN(F116)-LN('Summary Sheet'!$C$6))-3.131*(E116-'Summary Sheet'!$C$4)-3.443*(LN(D116)-LN('Summary Sheet'!$C$5))+0.494*(E116*LN(D116)-'Summary Sheet'!$C$4*LN('Summary Sheet'!$C$5))) -> 119537.2948 | L116: > | M116: =K116 -> 119537.2948 | N116: =M116 -> 119537.2948 | O116: > | P116: Hyla | Q116: Amphibian | R116: Value is from 2007 FW Cu AWQC Appendix C recommendation | S116: artificial soft recon

Sheet Chronic Dataset
B1: Appendix C. Acceptable Chronic Toxicity Data of Aluminum to Freshwater Aquatic Animals
J2: MLR equation
B3: Species | C3: Hardness (mg/L as CaCO3) | D3: pH | E3: DOC (mg/L) | F3: EC20 Endpoint | H3: EC20 (µg/L) | J3: Normalized Conc.- EC20 (µg/L) | L3: SMCV-EC20 (µg/L) | M3: GMCV-EC20 (µg/L) | O3: Genus | Q3: DOC Notes | R3: Dilution water
B5: Oligochaete, Aeolosoma sp. | C5: 48 | D5: 6 | E5: 0.25 | F5: Reproduction (population size) | H5: 1235 | J5: =EXP(LN(H5)-0.525*(LN(E5)-LN('Summary Sheet'!$C$6))-11.282*(D5-'Summary Sheet'!$C$4)-2.201*(LN(C5)-LN('Summary Sheet'!$C$5))+0.663*(D5^2-'Summary Sheet'!$C$4^2)+0.264*(D5*LN(C5)-'Summary Sheet'!$C$4*LN('Summary Sheet'!$C$5))) -> 28533.87769 | L5: =J5 -> 28533.87769 | M5: =L5 -> 28533.87769 | O5: Aeolosoma | P5: Invert | Q5: Author reported; half the detection limit
B7: Rotifer, Brachionus calyciflorus | C7: 100 | D7: 6.2 | E7: 0.25 | F7: Reproduction (population size) | H7: 431 | J7: =EXP(LN(H7)-0.525*(LN(E7)-LN('Summary Sheet'!$C$6))-11.282*(D7-'Summary Sheet'!$C$4)-2.201*(LN(C7)-LN('Summary Sheet'!$C$5))+0.663*(D7^2-'Summary Sheet'!$C$4^2)+0.264*(D7*LN(C7)-'Summary Sheet'!$C$4*LN('Summary Sheet'!$C$5))) -> 4263.063009 | L7: =J7 -> 4263.063009 | M7: =L7 -> 4263.063009 | O7: Brachionus | P7: Invert | Q7: Author reported; half the detection limit
B9: Great pond snail, Lymnaea stagnalis | C9: 117 | D9: 6.1 | E9: 0.25 | F9: Biomass | H9: 745.7 | J9: =EXP(LN(H9)-0.525*(LN(E9)-LN('Summary Sheet'!$C$6))-11.282*(D9-'Summary Sheet'!$C$4)-2.201*(LN(C9)-LN('Summary Sheet'!$C$5))+0.663*(D9^2-'Summary Sheet'!$C$4^2)+0.264*(D9*LN(C9)-'Summary Sheet'!$C$4*LN('Summary Sheet'!$C$5))) -> 8138.535873 | L9: =J9 -> 8138.535873 | M9: =L9 -> 8138.535873 | O9: Lymnaea | P9: Mollusk | Q9: Author reported; half the detection limit
B11: Fatmucket, Lampsilis siliquoidea | C11: 105.5 | D11: 6.04 | E11: =AVERAGE(0.34,0.45) -> 0.395 | F11: Biomass | H11: 169 | J11: =EXP(LN(H11)-0.525*(LN(E11)-LN('Summary Sheet'!$C$6))-11.282*(D11-'Summary Sheet'!$C$4)-2.201*(LN(C11)-LN('Summary Sheet'!$C$5))+0.663*(D11^2-'Summary Sheet'!$C$4^2)+0.264*(D11*LN(C11)-'Summary Sheet'!$C$4*LN('Summary Sheet'!$C$5))) -> 1739.051147 | L11: =J11 -> 1739.051147 | M11: =L11 -> 1739.051147 | O11: Lampsilis | P11: Mollusk | Q11: Author reported
B13: Cladoceran, Ceriodaphnia dubia | C13: 50 | D13: 7.15 | E13: 1.1 | F13: Reproduction - young/starting adult | H13: 1779.6 | J13: =EXP(LN(H13)-0.525*(LN(E13)-LN('Summary Sheet'!$C$6))-11.282*(D13-'Summary Sheet'!$C$4)-2.201*(LN(C13)-LN('Summary Sheet'!$C$5))+0.663*(D13^2-'Summary Sheet'!$C$4^2)+0.264*(D13*LN(C13)-'Summary Sheet'!$C$4*LN('Summary Sheet'!$C$5))) -> 3167.643234 | O13: Ceriodaphnia | Q13: Value is from 2007 FW Cu AWQC Appendix C recommendation | R13: Lake Superior water
B14: Cladoceran, Ceriodaphnia dubia | C14: 26 | D14: 7.3 | E14: 0.5 | F14: Reproduction - young/female | H14: 1557 | J14: =EXP(LN(H14)-0.525*(LN(E14)-LN('Summary Sheet'!$C$6))-11.282*(D14-'Summary Sheet'!$C$4)-2.201*(LN(C14)-LN('Summary Sheet'!$C$5))+0.663*(D14^2-'Summary Sheet'!$C$4^2)+0.264*(D14*LN(C14)-'Summary Sheet'!$C$4*LN('Summary Sheet'!$C$5))) -> 4535.85644 | O14: Ceriodaphnia | Q14: Value is from 2007 FW Cu AWQC Appendix C recommendation | R14: Lab Recon
B15: Cladoceran, Ceriodaphnia dubia | C15: 46 | D15: 7.5 | E15: 0.5 | F15: Reproduction - young/female | H15: 808.73 | J15: =EXP(LN(H15)-0.525*(LN(E15)-LN('Summary Sheet'!$C$6))-11.282*(D15-'Summary Sheet'!$C$4)-2.201*(LN(C15)-LN('Summary Sheet'!$C$5))+0.663*(D15^2-'Summary Sheet'!$C$4^2)+0.264*(D15*LN(C15)-'Summary Sheet'!$C$4*LN('Summary Sheet'!$C$5))) -> 1838.555014 | O15: Ceriodaphnia | Q15: Value is from 2007 FW Cu AWQC Appendix C recommendation | R15: Lab Recon
B16: Cladoceran, Ceriodaphnia dubia | C16: 96 | D16: 7.9 | E16: 0.5 | F16: Reproduction - young/female | H16: 651.9 | J16: =EXP(LN(H16)-0.525*(LN(E16)-LN('Summary Sheet'!$C$6))-11.282*(D16-'Summary Sheet'!$C$4)-2.201*(LN(C16)-LN('Summary Sheet'!$C$5))+0.663*(D16^2-'Summary Sheet'!$C$4^2)+0.264*(D16*LN(C16)-'Summary Sheet'!$C$4*LN('Summary Sheet'!$C$5))) -> 1328.552458 | O16: Ceriodaphnia | Q16: Value is from 2007 FW Cu AWQC Appendix C recommendation | R16: Lab Recon
B17: Cladoceran, Ceriodaphnia dubia | C17: 194 | D17: 8.1 | E17: 0.5 | F17: Reproduction - young/female | H17: 683.62 | J17: =EXP(LN(H17)-0.525*(LN(E17)-LN('Summary Sheet'!$C$6))-11.282*(D17-'Summary Sheet'!$C$4)-2.201*(LN(C17)-LN('Summary Sheet'!$C$5))+0.663*(D17^2-'Summary Sheet'!$C$4^2)+0.264*(D17*LN(C17)-'Summary Sheet'!$C$4*LN('Summary Sheet'!$C$5))) -> 1482.543011 | O17: Ceriodaphnia | Q17: Value is from 2007 FW Cu AWQC Appendix C recommendation | R17: Lab Recon
B18: Cladoceran, Ceriodaphnia dubia | C18: 25.5 | D18: 7.03 | E18: 0.5 | F18: Reproduction (young/female) | H18: 250 | J18: =EXP(LN(H18)-0.525*(LN(E18)-LN('Summary Sheet'!$C$6))-11.282*(D18-'Summary Sheet'!$C$4)-2.201*(LN(C18)-LN('Summary Sheet'!$C$5))+0.663*(D18^2-'Summary Sheet'!$C$4^2)+0.264*(D18*LN(C18)-'Summary Sheet'!$C$4*LN('Summary Sheet'!$C$5))) -> 940.2109959 | O18: Ceriodaphnia | Q18: Author reported
B19: Cladoceran, Ceriodaphnia dubia | C19: 122 | D19: 7.13 | E19: 0.5 | F19: Reproduction (young/female) | H19: 860 | J19: =EXP(LN(H19)-0.525*(LN(E19)-LN('Summary Sheet'!$C$6))-11.282*(D19-'Summary Sheet'!$C$4)-2.201*(LN(C19)-LN('Summary Sheet'!$C$5))+0.663*(D19^2-'Summary Sheet'!$C$4^2)+0.264*(D19*LN(C19)-'Summary Sheet'!$C$4*LN('Summary Sheet'!$C$5))) -> 1770.188857 | O19: Ceriodaphnia | Q19: Author reported
B20: Cladoceran, Ceriodaphnia dubia | C20: 25 | D20: 7.98 | E20: 0.5 | F20: Reproduction (young/female) | H20: 700 | J20: =EXP(LN(H20)-0.525*(LN(E20)-LN('Summary Sheet'!$C$6))-11.282*(D20-'Summary Sheet'!$C$4)-2.201*(LN(C20)-LN('Summary Sheet'!$C$5))+0.663*(D20^2-'Summary Sheet'!$C$4^2)+0.264*(D20*LN(C20)-'Summary Sheet'!$C$4*LN('Summary Sheet'!$C$5))) -> 1679.07744 | O20: Ceriodaphnia | Q20: Author reported
B21: Cladoceran, Ceriodaphnia dubia | C21: 61 | D21: 8.03 | E21: 0.5 | F21: Reproduction (young/female) | H21: 1010 | J21: =EXP(LN(H21)-0.525*(LN(E21)-LN('Summary Sheet'!$C$6))-11.282*(D21-'Summary Sheet'!$C$4)-2.201*(LN(C21)-LN('Summary Sheet'!$C$5))+0.663*(D21^2-'Summary Sheet'!$C$4^2)+0.264*(D21*LN(C21)-'Summary Sheet'!$C$4*LN('Summary Sheet'!$C$5))) -> 2274.28845 | O21: Ceriodaphnia | Q21: Author reported
B22: Cladoceran, Ceriodaphnia dubia | C22: 122 | D22: 8.1 | E22: 0.5 | F22: Reproduction (young/female) | H22: 870 | J22: =EXP(LN(H22)-0.525*(LN(E22)-LN('Summary Sheet'!$C$6))-11.282*(D22-'Summary Sheet'!$C$4)-2.201*(LN(C22)-LN('Summary Sheet'!$C$5))+0.663*(D22^2-'Summary Sheet'!$C$4^2)+0.264*(D22*LN(C22)-'Summary Sheet'!$C$4*LN('Summary Sheet'!$C$5))) -> 1942.325704 | O22: Ceriodaphnia | Q22: Author reported
B23: Cladoceran, Ceriodaphnia dubia | C23: 25.5 | D23: 6.33 | E23: 0.5 | F23: Reproduction (young/female) | H23: 260 | J23: =EXP(LN(H23)-0.525*(LN(E23)-LN('Summary Sheet'!$C$6))-11.282*(D23-'Summary Sheet'!$C$4)-2.201*(LN(C23)-LN('Summary Sheet'!$C$5))+0.663*(D23^2-'Summary Sheet'!$C$4^2)+0.264*(D23*LN(C23)-'Summary Sheet'!$C$4*LN('Summary Sheet'!$C$5))) -> 2933.176513 | O23: Ceriodaphnia | Q23: Author reported
B24: Cladoceran, Ceriodaphnia dubia | C24: 121 | D24: 6.36 | E24: 0.5 | F24: Reproduction (young/female) | H24: 390 | J24: =EXP(LN(H24)-0.525*(LN(E24)-LN('Summary Sheet'!$C$6))-11.282*(D24-'Summary Sheet'!$C$4)-2.201*(LN(C24)-LN('Summary Sheet'!$C$5))+0.663*(D24^2-'Summary Sheet'!$C$4^2)+0.264*(D24*LN(C24)-'Summary Sheet'!$C$4*LN('Summary Sheet'!$C$5))) -> 1837.480396 | L24: =GEOMEAN(J13:J24) -> 1972.158721 | M24: =L24 -> 1972.158721 | O24: Ceriodaphnia | P24: Invert | Q24: Author reported
B26: Amphipod, Hyalella azteca | C26: 95 | D26: 6.1 | E26: 0.51 | F26: Biomass (28 d) | H26: 199.3 | J26: =EXP(LN(H26)-0.525*(LN(E26)-LN('Summary Sheet'!$C$6))-11.282*(D26-'Summary Sheet'!$C$4)-2.201*(LN(C26)-LN('Summary Sheet'!$C$5))+0.663*(D26^2-'Summary Sheet'!$C$4^2)+0.264*(D26*LN(C26)-'Summary Sheet'!$C$4*LN('Summary Sheet'!$C$5))) -> 1691.845141 | O26: Hyalella | Q26: Author reported
B27: Amphipod, Hyalella azteca | C27: 106 | D27: 6.04 | E27: =AVERAGE(0.26,0.39) -> 0.325 | F27: Biomass (28 d) | H27: 425 | J27: =EXP(LN(H27)-0.525*(LN(E27)-LN('Summary Sheet'!$C$6))-11.282*(D27-'Summary Sheet'!$C$4)-2.201*(LN(C27)-LN('Summary Sheet'!$C$5))+0.663*(D27^2-'Summary Sheet'!$C$4^2)+0.264*(D27*LN(C27)-'Summary Sheet'!$C$4*LN('Summary Sheet'!$C$5))) -> 4831.077718 | L27: =GEOMEAN(J26:J27) -> 2858.922063 | M27: =L27 -> 2858.922063 | O27: Hyalella | P27: Invert | Q27: Author reported
B29: Midge, Chironomus riparius | C29: 11.8 | D29: 5.58 | E29: 1.8 | F29: Adult midge emergence | H29: 29.547 | J29: =EXP(LN(H29)-0.525*(LN(E29)-LN('Summary Sheet'!$C$6))-11.282*(D29-'Summary Sheet'!$C$4)-2.201*(LN(C29)-LN('Summary Sheet'!$C$5))+0.663*(D29^2-'Summary Sheet'!$C$4^2)+0.264*(D29*LN(C29)-'Summary Sheet'!$C$4*LN('Summary Sheet'!$C$5))) -> 1989.293274 | O29: Chironomus | Q29: Based on Cleveland et al. 1989 reported values at a similar pH | R29: well/RO mix
B30: Midge, Chironomus riparius | C30: 11.9 | D30: 5.05 | E30: 1.8 | F30: Adult midge emergence | H30: 84.416 | J30: =EXP(LN(H30)-0.525*(LN(E30)-LN('Summary Sheet'!$C$6))-11.282*(D30-'Summary Sheet'!$C$4)-2.201*(LN(C30)-LN('Summary Sheet'!$C$5))+0.663*(D30^2-'Summary Sheet'!$C$4^2)+0.264*(D30*LN(C30)-'Summary Sheet'!$C$4*LN('Summary Sheet'!$C$5))) -> 37678.08937 | O30: Chironomus | Q30: Based on Cleveland et al. 1989 reported values at a similar pH | R30: well/RO mix
B31: Midge, Chironomus riparius | C31: 91 | D31: 6.6 | E31: 0.51 | F31: Reproduction (# of eggs/case) | H31: 3387 | J31: =EXP(LN(H31)-0.525*(LN(E31)-LN('Summary Sheet'!$C$6))-11.282*(D31-'Summary Sheet'!$C$4)-2.201*(LN(C31)-LN('Summary Sheet'!$C$5))+0.663*(D31^2-'Summary Sheet'!$C$4^2)+0.264*(D31*LN(C31)-'Summary Sheet'!$C$4*LN('Summary Sheet'!$C$5))) -> 12789.15928 | L31: =GEOMEAN(J29:J31) -> 9859.991961 | M31: =L31 -> 9859.991961 | O31: Chironomus | P31: Invert | Q31: Author reported
B33: Atlantic salmon, Salmo salar | C33: 12.7 | D33: 5.7 | E33: 1.8 | F33: Biomass | H33: 61.564 | J33: =EXP(LN(H33)-0.503*(LN(E33)-LN('Summary Sheet'!$C$6))-3.131*(D33-'Summary Sheet'!$C$4)-3.443*(LN(C33)-LN('Summary Sheet'!$C$5))+0.494*(D33*LN(C33)-'Summary Sheet'!$C$4*LN('Summary Sheet'!$C$5))) -> 3037.028378 | L33: =J33 -> 3037.028378 | M33: =L33 -> 3037.028378 | O33: Salmo | P33: Fish | Q33: Based on Cleveland et al. 1989 reported values at a similar pH | R33: well/RO mix
B35: Brook trout, Salvelinus fontinalis | C35: 12.3 | D35: 6.55 | E35: 1.9 | F35: Biomass | H35: 164.35 | J35: =EXP(LN(H35)-0.503*(LN(E35)-LN('Summary Sheet'!$C$6))-3.131*(D35-'Summary Sheet'!$C$4)-3.443*(LN(C35)-LN('Summary Sheet'!$C$5))+0.494*(D35*LN(C35)-'Summary Sheet'!$C$4*LN('Summary Sheet'!$C$5))) -> 1613.018998 | O35: Salvelinus | Q35: Author reported | R35: well/RO mix
B36: Brook trout, Salvelinus fontinalis | C36: 12.8 | D36: 5.65 | E36: 1.8 | F36: Biomass | H36: 143.47 | J36: =EXP(LN(H36)-0.503*(LN(E36)-LN('Summary Sheet'!$C$6))-3.131*(D36-'Summary Sheet'!$C$4)-3.443*(LN(C36)-LN('Summary Sheet'!$C$5))+0.494*(D36*LN(C36)-'Summary Sheet'!$C$4*LN('Summary Sheet'!$C$5))) -> 7733.702016 | L36: =GEOMEAN(J35:J36) -> 3531.941148 | M36: =L36 -> 3531.941148 | O36: Salvelinus | P36: Fish | Q36: Author reported | R36: well/RO mix
B38: Fathead minnow, Pimephales promelas | C38: 220 | D38: 7.7 | E38: 1.6 | F38: Biomass | H38: 6193.6 | J38: =EXP(LN(H38)-0.503*(LN(E38)-LN('Summary Sheet'!$C$6))-3.131*(D38-'Summary Sheet'!$C$4)-3.443*(LN(C38)-LN('Summary Sheet'!$C$5))+0.494*(D38*LN(C38)-'Summary Sheet'!$C$4*LN('Summary Sheet'!$C$5))) -> 21315.45682 | O38: Pimephales | Q38: Value is from 2007 FW Cu AWQC Appendix C recommendation | R38: well water
B39: Fathead minnow, Pimephales promelas | C39: 96 | D39: 6.2 | E39: 0.25 | F39: Fry survival | H39: 428.6 | J39: =EXP(LN(H39)-0.503*(LN(E39)-LN('Summary Sheet'!$C$6))-3.131*(D39-'Summary Sheet'!$C$4)-3.443*(LN(C39)-LN('Summary Sheet'!$C$5))+0.494*(D39*LN(C39)-'Summary Sheet'!$C$4*LN('Summary Sheet'!$C$5))) -> 10355.48854 | L39: =GEOMEAN(J38:J39) -> 14857.05115 | M39: =L39 -> 14857.05115 | O39: Pimephales | P39: Fish | Q39: Author reported; half the detection limit
B41: Zebrafish, Danio rerio | C41: 83 | D41: 6.1 | E41: 0.25 | F41: Biomass | H41: 234.4 | J41: =EXP(LN(H41)-0.503*(LN(E41)-LN('Summary Sheet'!$C$6))-3.131*(D41-'Summary Sheet'!$C$4)-3.443*(LN(C41)-LN('Summary Sheet'!$C$5))+0.494*(D41*LN(C41)-'Summary Sheet'!$C$4*LN('Summary Sheet'!$C$5))) -> 6580.777536 | L41: =J41 -> 6580.777536 | M41: =L41 -> 6580.777536 | O41: Danio | P41: Fish | Q41: Author reported; half the detection limit
B43: Wood frog, Rana sylvatica | C43: 115 | D43: 4.69 | E43: 1.6 | F43: MATC-survival | G43: > | H43: 2000 | I43: > | J43: =EXP(LN(H43)-0.503*(LN(E43)-LN('Summary Sheet'!$C$6))-3.131*(D43-'Summary Sheet'!$C$4)-3.443*(LN(C43)-LN('Summary Sheet'!$C$5))+0.494*(D43*LN(C43)-'Summary Sheet'!$C$4*LN('Summary Sheet'!$C$5))) -> 58200.53084 | K43: > | L43: =J43 -> 58200.53084 | M43: =L43 -> 58200.53084 | N43: > | O43: Rana | P43: Amphib - Other Data | Q43: Value is from 2007 FW Cu AWQC Appendix C recommendation | R43: aged tap water
